NUMERO_MANDATO;RIGA_MANDATO;QUIET;IMPORTO_RIGA;IMPORTO_MANDATO;BENEFICIARIO;CIG;TITOLO_PAGAMENTO;DATA_MANDATO;CAPITOLO;ARTICOLO;NUMERO_IMPEGNO;TITOLO;DESCR_TITOLO;LIVELLO_II;DESCR_LIVELLO_II;LIVELLO_III;DESCR_LIVELLO_III;LIVELLO_IV;DESCR_LIVELLO_IV;LIVELLO_V;DESCR_LIVELLO_V;DATA_PAG_EFF;
259;1;0;"2.312,50";"2.312,50";COMUNE DI FOSSACESIA; ;SALDO SPESE PER COMPETENZE CENTRALE UNICA DI COMMITTENZA;04-04-2018;110264;0;165;1;Spese correnti;4;Trasferimenti correnti;1;Trasferimenti correnti a Amministrazioni Pubbliche;2;Trasferimenti correnti a Amministrazioni Locali;3;Trasferimenti correnti a Comuni;04-04-2018;
260;1;0;"69.308,19";"69.308,19";COMUNE DI FOSSACESIA; ;SLADO SPESA PER SERVIZI SOCIALI PRIMO SEMESTRE 2017;04-04-2018;161546;0;135;1;Spese correnti;4;Trasferimenti correnti;1;Trasferimenti correnti a Amministrazioni Pubbliche;2;Trasferimenti correnti a Amministrazioni Locali;5;Trasferimenti correnti a Unioni di Comuni;04-04-2018;
261;1;0;"1.151,15";"2.365,17";CONSORZIO COMPRENSORIALE SMALTIMENTO.ECO.LAN. S.P.A.;Z9C1E96625;SALDO Fatt.n. 101214  del 31/12/2017 Periodo: 01/12/2017 - 31/12/2017 MATERIALI MISTI;04-04-2018;160944;0;88;1;Spese correnti;3;Acquisto di beni e servizi;2;Acquisto di servizi;15;Contratti di servizio pubblico;5;Contratti di servizio per il conferimento in discarica dei rifiuti;04-04-2018;
261;2;0;"1.214,02";"2.365,17";CONSORZIO COMPRENSORIALE SMALTIMENTO.ECO.LAN. S.P.A.;Z9C1E96625;SALDO Fatt.n. 101116  del 30/11/2017 Periodo: 01/11/2017 - 30/11/2017 MATERIALI MISTI;04-04-2018;160944;0;88;1;Spese correnti;3;Acquisto di beni e servizi;2;Acquisto di servizi;15;Contratti di servizio pubblico;5;Contratti di servizio per il conferimento in discarica dei rifiuti;04-04-2018;
262;1;0;"5.962,63";"5.962,63";LABOR  SOC. COOP. A R.L.;6047133C01;SALDO Fatt.n. 188/PA  del 30/11/2017 SERVIZIO REFEZIONE SCOLASTICA_NOVEMBRE 2017_;04-04-2018;140444;0;69;1;Spese correnti;3;Acquisto di beni e servizi;2;Acquisto di servizi;15;Contratti di servizio pubblico;6;Contratti di servizio per le mense scolastiche;04-04-2018;
263;1;0;"360,96";"1.945,82";EDOS SRL; ;SALDO Fatt.n. 626EL  del 21/06/2016 COMPARTECIPAZIONE SPESA SANITARIA ANNO 2015 - FEBBRAIO 2015;04-04-2018;161538;0;244;1;Spese correnti;3;Acquisto di beni e servizi;2;Acquisto di servizi;18;Servizi sanitari;14;Acquisti di servizi socio sanitari a rilevanza sanitaria;04-04-2018;
263;2;0;"386,60";"1.945,82";EDOS SRL; ;SALDO Fatt.n. 640EL  del 21/06/2016 COMPARTECIPAZIONE SPESA SANITARIA ANNO 2015 - APRILE 2015;04-04-2018;161538;0;244;1;Spese correnti;3;Acquisto di beni e servizi;2;Acquisto di servizi;18;Servizi sanitari;14;Acquisti di servizi socio sanitari a rilevanza sanitaria;04-04-2018;
263;3;0;"399,42";"1.945,82";EDOS SRL; ;SALDO Fatt.n. 618EL  del 21/06/2016 COMPARTECIPAZIONE SPESA SANITARIA ANNO 2015 - GENNAIO 2015;04-04-2018;161538;0;244;1;Spese correnti;3;Acquisto di beni e servizi;2;Acquisto di servizi;18;Servizi sanitari;14;Acquisti di servizi socio sanitari a rilevanza sanitaria;04-04-2018;
263;4;0;"399,42";"1.945,82";EDOS SRL; ;SALDO Fatt.n. 633EL  del 21/06/2016 COMPARTECIPAZIONE SPESA SANITARIA ANNO 2015 - MARZO 2015;04-04-2018;161538;0;244;1;Spese correnti;3;Acquisto di beni e servizi;2;Acquisto di servizi;18;Servizi sanitari;14;Acquisti di servizi socio sanitari a rilevanza sanitaria;04-04-2018;
263;5;0;"399,42";"1.945,82";EDOS SRL; ;SALDO Fatt.n. 647EL  del 21/06/2016 COMPARTECIPAZIONE SPESA SANITARIA ANNO 2015 - MAGGIO 2015;04-04-2018;161538;0;244;1;Spese correnti;3;Acquisto di beni e servizi;2;Acquisto di servizi;18;Servizi sanitari;14;Acquisti di servizi socio sanitari a rilevanza sanitaria;04-04-2018;
264;1;0;"1.063,96";"1.063,96";MYO S.R.L.;ZC91FF0250;SALDO Fatt.n. 2040/170032940  del 31/12/2017 SERVIZIO PROMTO PASSWEB DIPEDENTI;04-04-2018;110248;0;134;1;Spese correnti;3;Acquisto di beni e servizi;2;Acquisto di servizi;19;Servizi informatici e di telecomunicazioni;10;Servizi di consulenza e prestazioni professionali ICT;04-04-2018;
265;1;0;"836,72";"836,72";METAMER S.R.L.;X0F139C8F2;SALDO Fatt.n. 0001BF20170000002415  del 11/12/2017 METANO SCUOLA ELEMENTARE;04-04-2018;140242;0;44;1;Spese correnti;3;Acquisto di beni e servizi;2;Acquisto di servizi;5;Utenze e canoni;6;Gas;04-04-2018;
266;1;0;"1.343,12";"2.826,68";METAMER S.R.L.;X0F139C8F2;SALDO Fatt.n. 0001BF20180000000005  del 15/01/2018 METANO;04-04-2018;140338;0;94;1;Spese correnti;3;Acquisto di beni e servizi;2;Acquisto di servizi;5;Utenze e canoni;6;Gas;04-04-2018;
266;2;0;"1.483,56";"2.826,68";METAMER S.R.L.;X0F139C8F2;SALDO Fatt.n. 0001BF20180000000333  del 14/02/2018 METANO SCUOLA ELEMENTARE E MEDIA;04-04-2018;140338;0;94;1;Spese correnti;3;Acquisto di beni e servizi;2;Acquisto di servizi;5;Utenze e canoni;6;Gas;04-04-2018;
267;1;0;"66,68";"609,37";METAMER S.R.L.;X37139C8F1;SALDO Fatt.n. 0001BF20170000001799  del 16/09/2017 GAS METANO CENTRO SOCIALE DI APRILE-AGOSTO 2017;04-04-2018;161646;0;104;1;Spese correnti;3;Acquisto di beni e servizi;2;Acquisto di servizi;5;Utenze e canoni;4;Energia elettrica;04-04-2018;
267;2;0;"92,84";"609,37";METAMER S.R.L.;X37139C8F1;SALDO Fatt.n. 0001BF20170000001324  del 17/07/2017 GAS METANO CENTRO SOCIALE APRILE-GIUGNO 2017;04-04-2018;161646;0;104;1;Spese correnti;3;Acquisto di beni e servizi;2;Acquisto di servizi;5;Utenze e canoni;4;Energia elettrica;04-04-2018;
267;3;0;"449,85";"609,37";METAMER S.R.L.;X37139C8F1;ACCONTO Fatt.n. 0001BF20180000000054  del 15/01/2018 0001BFE20180000000000000054B/BOLLETTAZIONE MASSIVA;04-04-2018;161646;0;104;1;Spese correnti;3;Acquisto di beni e servizi;2;Acquisto di servizi;5;Utenze e canoni;4;Energia elettrica;04-04-2018;
268;1;0;"18,61";"18,61";METAMER S.R.L.;X37139C8F1;SALDO Fatt.n. 0001BF20180000000054  del 15/01/2018 0001BFE20180000000000000054B/BOLLETTAZIONE MASSIVA;04-04-2018;161646;0;104;1;Spese correnti;3;Acquisto di beni e servizi;2;Acquisto di servizi;5;Utenze e canoni;4;Energia elettrica;04-04-2018;
269;1;0;"743,32";"743,32";METAMER S.R.L.;X0F139C8F2;ACCONTO Fatt.n. 0001BF20180000000053  del 15/01/2018 0001BFE20180000000000000053B/BOLLETTAZIONE MASSIVA;04-04-2018;110832;0;92;1;Spese correnti;3;Acquisto di beni e servizi;2;Acquisto di servizi;5;Utenze e canoni;6;Gas;04-04-2018;
270;1;0;"425,24";"425,24";METAMER S.R.L.; ;SALDO Fatt.n. 0001BF20180000000053  del 15/01/2018 0001BFE20180000000000000053B/BOLLETTAZIONE MASSIVA;04-04-2018;110832;0;43;1;Spese correnti;3;Acquisto di beni e servizi;2;Acquisto di servizi;5;Utenze e canoni;6;Gas;04-04-2018;
271;1;0;"888,16";"888,16";COMUNE DI LANCIANO; ;SPESE DI FUNZIONAMENTO DEL CENTRO PER L'IMPIEGO 2017;04-04-2018;161644;0;205;1;Spese correnti;4;Trasferimenti correnti;1;Trasferimenti correnti a Amministrazioni Pubbliche;2;Trasferimenti correnti a Amministrazioni Locali;3;Trasferimenti correnti a Comuni;04-04-2018;
272;1;0;"1.614,00";"1.614,00";CLUB "I BORGHI PIU' BELLI D'ITALIA";Z8822F2ADB;QUOTA ASSOCIATIVA AL CLUB "I BORGHI PIU' BELLI D'ITALIA" E QUOTA DI PARTECIPAZIONE ALLA NOTTE ROMANTICA DEI BORGHI EDIZIONE 2018;04-04-2018;110232;0;89;1;Spese correnti;4;Trasferimenti correnti;1;Trasferimenti correnti a Amministrazioni Pubbliche;2;Trasferimenti correnti a Amministrazioni Locali;18;Trasferimenti correnti a Consorzi di enti locali;04-04-2018;
273;1;0;"1.631,97";"1.631,97";POSTE ITALIANE S.P.A.;Z7B14AEE33;SALDO Fatt.n. 8717386086  del 14/12/2017 CORRISPONDENZE AFFRANCATE NEL MESE DI OTTOBRE 2017;04-04-2018;110260;0;135;1;Spese correnti;3;Acquisto di beni e servizi;2;Acquisto di servizi;16;Servizi amministrativi;2;Spese postali;04-04-2018;
274;1;0;"2,00";"1.493,14";POSTE ITALIANE S.P.A.;Z7B14AEE33;SALDO Fatt.n. 8718032760  del 31/01/2018 RENDICONTO NOVEMBRE 2017;04-04-2018;110260;0;135;1;Spese correnti;3;Acquisto di beni e servizi;2;Acquisto di servizi;16;Servizi amministrativi;2;Spese postali;04-04-2018;
274;2;0;"352,05";"1.493,14";POSTE ITALIANE S.P.A.;Z7B14AEE33;ACCONTO Fatt.n. 8718060353  del 23/02/2018 Fattura Elettronica relativa all'Identificativo Rendiconto 2095801865;04-04-2018;110260;0;135;1;Spese correnti;3;Acquisto di beni e servizi;2;Acquisto di servizi;16;Servizi amministrativi;2;Spese postali;04-04-2018;
274;3;0;"1.139,09";"1.493,14";POSTE ITALIANE S.P.A.;Z7B14AEE33;ACCONTO Fatt.n. 8718032760  del 31/01/2018 RENDICONTO NOVEMBRE 2017;04-04-2018;110260;0;135;1;Spese correnti;3;Acquisto di beni e servizi;2;Acquisto di servizi;16;Servizi amministrativi;2;Spese postali;04-04-2018;
275;1;0;"1.054,73";"1.054,73";POSTE ITALIANE S.P.A.;ZC921B047B;SALDO Fatt.n. 8718060353  del 23/02/2018 Fattura Elettronica relativa all'Identificativo Rendiconto 2095801865;04-04-2018;110260;0;12;1;Spese correnti;3;Acquisto di beni e servizi;2;Acquisto di servizi;16;Servizi amministrativi;2;Spese postali;04-04-2018;
276;1;0;"18.500,00";"18.500,00";HALLEY INFORMATICA S.R.L.;Z551F3AC3C;ACCONTO Fatt.n. 8671/8/10  del 25/07/2017 ASSISTENZA AI PROGRAMMI ANNO 2017 ASSISTENZA HARDWARE ANNO 2017 Determina n.60/127   del 10/05/2017 Impegno di spesa n. 118 e 119 capitolo 110847 e 110248 Responsabile ordine dell'Ente  ANTONELLA DI;04-04-2018;110847;0;117;1;Spese correnti;3;Acquisto di beni e servizi;2;Acquisto di servizi;19;Servizi informatici e di telecomunicazioni;5;Servizi per i sistemi e relativa manutenzione;04-04-2018;
277;1;0;"440,10";"440,10";HALLEY INFORMATICA S.R.L.;Z551F3AC3C;SALDO Fatt.n. 8671/8/10  del 25/07/2017 ASSISTENZA AI PROGRAMMI ANNO 2017 ASSISTENZA HARDWARE ANNO 2017 Determina n.60/127   del 10/05/2017 Impegno di spesa n. 118 e 119 capitolo 110847 e 110248 Responsabile ordine dell'Ente  ANTONELLA DI;04-04-2018;110248;0;118;1;Spese correnti;3;Acquisto di beni e servizi;2;Acquisto di servizi;19;Servizi informatici e di telecomunicazioni;10;Servizi di consulenza e prestazioni professionali ICT;04-04-2018;
278;1;0;"1.219,95";"1.219,95";WOLTERS KLUWER ITALIA S.R.L.- IPSOA;Z0720390BF;SALDO Fatt.n. 0052521752  del 17/10/2017 SISTEMA LEGGI D'ITALIA;04-04-2018;110230;0;164;1;Spese correnti;3;Acquisto di beni e servizi;1;Acquisto di beni;1;"Giornali, riviste e pubblicazioni";1;Giornali e riviste;04-04-2018;
279;1;0;"414,80";"414,80";DECART SRL;ZE2207751A;SALDO Fatt.n. 577/PA  del 10/11/2017 N. 500 BLOCCHETTI BUONI PASTO;04-04-2018;140140;0;153;1;Spese correnti;3;Acquisto di beni e servizi;1;Acquisto di beni;2;Altri beni di consumo;1;"Carta, cancelleria e stampati";04-04-2018;
280;1;0;"1.443,75";"2.887,50";BLUE LINE SOC. COOP. SOCIALE;ZA81DEEBE0;SALDO Fatt.n. 307  del 31/10/2017 BORSA LAVORO DI OTTOBRE 2017;04-04-2018;161548;0;100;1;Spese correnti;3;Acquisto di beni e servizi;2;Acquisto di servizi;15;Contratti di servizio pubblico;999;Altre spese per contratti di servizio pubblico;04-04-2018;
280;2;0;"1.443,75";"2.887,50";BLUE LINE SOC. COOP. SOCIALE;ZA81DEEBE0;SALDO Fatt.n. 352  del 30/11/2017 SERVIZIO BORSA LAVORO DI NOVEMBRE 2017;04-04-2018;161548;0;100;1;Spese correnti;3;Acquisto di beni e servizi;2;Acquisto di servizi;15;Contratti di servizio pubblico;999;Altre spese per contratti di servizio pubblico;04-04-2018;
281;1;0;"1.149,88";"10.102,01";CONSORZIO COOPERATIVE SOCIALI S.G.S.;Z3F1EC18D2;SALDO Fatt.n. 1/10  del 16/01/2018 ASSISTENZA ALUNNI H OPERATORI SCUOLE SUPERIORI DI DICEMBRE 2017;04-04-2018;161540;0;126;1;Spese correnti;3;Acquisto di beni e servizi;2;Acquisto di servizi;15;Contratti di servizio pubblico;3;Contratti di servizio per il trasporto di disabili e anziani;04-04-2018;
281;2;0;"8.952,13";"10.102,01";CROCE ARCOBALENO COOP. SOC. ONLUS;Z3F1EC18D2;SALDO Fatt.n. FATTPA 21_18  del 20/02/2018 TRASPORTO ALUNNI DISABILI -MAGGIO-DICEMBRE 2017;04-04-2018;161540;0;126;1;Spese correnti;3;Acquisto di beni e servizi;2;Acquisto di servizi;15;Contratti di servizio pubblico;3;Contratti di servizio per il trasporto di disabili e anziani;04-04-2018;
282;1;0;"1.230,97";"1.230,97";METAMER S.R.L.; ;SALDO Fatt.n. 0001BF20180000000479  del 17/03/2018 METANO FEBBRAIO 2018;09-04-2018;140242;0;44;1;Spese correnti;3;Acquisto di beni e servizi;2;Acquisto di servizi;5;Utenze e canoni;6;Gas;09-04-2018;
283;1;0;"441,87";"441,87";METAMER S.R.L.;X37139C8F1;SALDO Fatt.n. 0001BF20180000000523  del 17/03/2018 METANO GENNAIO-FEBBRAIO 2018;09-04-2018;161646;0;104;1;Spese correnti;3;Acquisto di beni e servizi;2;Acquisto di servizi;5;Utenze e canoni;4;Energia elettrica;09-04-2018;
284;1;0;"1.467,82";"1.467,82";METAMER S.R.L.;X37139C8F1;SALDO Fatt.n. 0001BF20180000000522  del 17/03/2018 METANO GENNAIO-FEBBRAIO 2018;09-04-2018;110832;0;43;1;Spese correnti;3;Acquisto di beni e servizi;2;Acquisto di servizi;5;Utenze e canoni;6;Gas;09-04-2018;
285;1;0;"1.500,00";"1.500,00";BANCA POPOLARE DELL'EMILIA ROMAGNA;ZA01C20DE3;SERVIZIO DI TESORERIA COMUNALE 2018;09-04-2018;110238;0;96;1;Spese correnti;3;Acquisto di beni e servizi;2;Acquisto di servizi;17;Servizi finanziari;2;Oneri per servizio di tesoreria;09-04-2018;
288;1;0;"219,60";"219,60";FIND SERVICE GENIOLA S.R.L.;X5817FD5C9;SALDO Fatt.n. 8/01  del 30/12/2016 NOLEGGIO AUTOGRU;09-04-2018;170144;0;63;1;Spese correnti;3;Acquisto di beni e servizi;2;Acquisto di servizi;7;Utilizzo di beni di terzi;2;Noleggi di mezzi di trasporto;09-04-2018;
316;1;0;"4.074,93";"4.074,93";SOCIETA' GESTIONE ENTRATE E TRIBUTI; ;SALDO Fatt.n. 78000  del 09/02/2018 GESTIONE ACCERTAMENTO ENTRATE COMUNALI E TRIBUTARIE;18-04-2018;110736;0;169;1;Spese correnti;3;Acquisto di beni e servizi;2;Acquisto di servizi;10;Consulenze;3;"Incarichi a societa` di studi, ricerca e consulenza";18-04-2018;
317;1;0;"2.024,70";"2.024,70";COMUNE DI SAN VITO CHIETINO; ;ONERI DI FUNZIONAMENTO ISTITUTO COMPRENSIVO ANNO 2014;18-04-2018;140342;0;516;1;Spese correnti;4;Trasferimenti correnti;1;Trasferimenti correnti a Amministrazioni Pubbliche;1;Trasferimenti correnti a Amministrazioni Centrali;999;Trasferimenti correnti a altre Amministrazioni Centrali n.a.c.;18-04-2018;
318;1;0;"49,01";"356,31";DELLE VIGNE TOMMASO S.R.L.;Z8C1D664AB;SALDO Fatt.n. 1205/02  del 31/12/2017 FERRAMENTA;18-04-2018;170112;0;50;1;Spese correnti;3;Acquisto di beni e servizi;1;Acquisto di beni;2;Altri beni di consumo;999;Altri beni e materiali di consumo n.a.c.;18-04-2018;
318;2;0;"307,30";"356,31";NATALE FLORINDO;Z8C1D664AB;"SALDO Fatt.n. FATTPA 14_17  del 19/12/2017 FIORI, TERRICCIO E CONCIME";18-04-2018;170112;0;50;1;Spese correnti;3;Acquisto di beni e servizi;1;Acquisto di beni;2;Altri beni di consumo;999;Altri beni e materiali di consumo n.a.c.;18-04-2018;
319;1;0;"138,56";"138,56";DELLE VIGNE TOMMASO S.R.L.;ZB32230D75;SALDO Fatt.n. 26/02  del 31/01/2018 FERRAMENTA;18-04-2018;170112;0;71;1;Spese correnti;3;Acquisto di beni e servizi;1;Acquisto di beni;2;Altri beni di consumo;999;Altri beni e materiali di consumo n.a.c.;18-04-2018;
320;1;0;"-4.293,28";"2.547,95";LABOR  SOC. COOP. A R.L.;6047133C01;ACCONTO Fatt.n. 5/PA  del 30/12/2017 SERVIZIO REFEZIONE SCOLASTICA_DICEMBRE 2017_;18-04-2018;140444;0;69;1;Spese correnti;3;Acquisto di beni e servizi;2;Acquisto di servizi;15;Contratti di servizio pubblico;6;Contratti di servizio per le mense scolastiche;18-04-2018;
320;2;0;"-165,13";"2.547,95";LABOR  SOC. COOP. A R.L.; ;SALDO Fatt.n. 206/PA  del 22/12/2017 SERVIZIO REFEZIONE SCOLASTICA_DICEMBRE 2017_;18-04-2018;140444;0;69;1;Spese correnti;3;Acquisto di beni e servizi;2;Acquisto di servizi;15;Contratti di servizio pubblico;6;Contratti di servizio per le mense scolastiche;18-04-2018;
320;3;0;"165,13";"2.547,95";LABOR  SOC. COOP. A R.L.; ;SALDO Fatt.n. 5/PA  del 30/12/2017 SERVIZIO REFEZIONE SCOLASTICA_DICEMBRE 2017_;18-04-2018;140444;0;69;1;Spese correnti;3;Acquisto di beni e servizi;2;Acquisto di servizi;15;Contratti di servizio pubblico;6;Contratti di servizio per le mense scolastiche;18-04-2018;
320;4;0;"2.547,95";"2.547,95";LABOR  SOC. COOP. A R.L.;6047133C01;ACCONTO Fatt.n. 212/PA  del 30/12/2017 SERVIZIO REFEZIONE SCOLASTICA_DICEMBRE 2017_;18-04-2018;140444;0;69;1;Spese correnti;3;Acquisto di beni e servizi;2;Acquisto di servizi;15;Contratti di servizio pubblico;6;Contratti di servizio per le mense scolastiche;18-04-2018;
320;5;0;"4.293,28";"2.547,95";LABOR  SOC. COOP. A R.L.;6047133C01;SALDO Fatt.n. 206/PA  del 22/12/2017 SERVIZIO REFEZIONE SCOLASTICA_DICEMBRE 2017_;18-04-2018;140444;0;69;1;Spese correnti;3;Acquisto di beni e servizi;2;Acquisto di servizi;15;Contratti di servizio pubblico;6;Contratti di servizio per le mense scolastiche;18-04-2018;
321;1;0;"1.745,33";"1.745,33";LABOR  SOC. COOP. A R.L.; ;SALDO Fatt.n. 212/PA  del 30/12/2017 SERVIZIO REFEZIONE SCOLASTICA_DICEMBRE 2017_;18-04-2018;140444;0;1;1;Spese correnti;3;Acquisto di beni e servizi;2;Acquisto di servizi;15;Contratti di servizio pubblico;6;Contratti di servizio per le mense scolastiche;18-04-2018;
322;1;0;"9.801,00";"9.801,00";IEZZI TRAVEL SRL;6770169831;SALDO Fatt.n. FATTPA 81_17  del 31/12/2017 TRASPORTO SCOLASTICO DI DICEMBRE 2017;18-04-2018;140448;0;223;1;Spese correnti;3;Acquisto di beni e servizi;2;Acquisto di servizi;15;Contratti di servizio pubblico;2;Contratti di servizio di trasporto scolastico;18-04-2018;
323;1;0;"183,00";"183,00";TECNOASFALTI S.R.L.;Z8E222F6BD;SALDO Fatt.n. 3/10  del 31/01/2018 CONGLOMERATO BITUMINOSO;18-04-2018;270116;0;69;2;Spese in conto capitale;2;Investimenti fissi lordi e acquisto di terreni;1;Beni materiali;99;Altri beni materiali;999;Altri beni materiali diversi;18-04-2018;
324;1;0;"26,75";"26,75";ETERNEDILE SPA;Z7C21E961D;SALDO Fatt.n. VP-4  del 31/01/2018 MATERIALE EDILE;18-04-2018;170112;0;66;1;Spese correnti;3;Acquisto di beni e servizi;1;Acquisto di beni;2;Altri beni di consumo;999;Altri beni e materiali di consumo n.a.c.;18-04-2018;
325;1;0;"35,33";"35,33";BORGIONE CENTRO DIDATTICO S.R.L.;Z832123720;SALDO Fatt.n. V3-1170  del 15/01/2018 SUPERPENNARELLI GIOTTO;18-04-2018;140140;0;177;1;Spese correnti;3;Acquisto di beni e servizi;1;Acquisto di beni;2;Altri beni di consumo;12;Accessori per attivit� sportive e ricreative;18-04-2018;
326;1;0;"64,23";"64,23";EUROLUX S.R.L.;Z751D6645A;SALDO Fatt.n. 17/1631  del 30/12/2017 MATERIALE ELETTRICO;18-04-2018;170224;0;54;1;Spese correnti;3;Acquisto di beni e servizi;1;Acquisto di beni;2;Altri beni di consumo;999;Altri beni e materiali di consumo n.a.c.;18-04-2018;
327;1;0;"109,80";"109,80";FIND SERVICE GENIOLA S.R.L.;ZA61D664D0;SALDO Fatt.n. 12/01  del 29/12/2017 NOLO PIATTAFORMA;18-04-2018;170144;0;95;1;Spese correnti;3;Acquisto di beni e servizi;2;Acquisto di servizi;7;Utilizzo di beni di terzi;8;Noleggi di impianti e macchinari;18-04-2018;
328;1;0;"198,25";"198,25";DI BIASE D. & C. S.N.C.;Z8C1D664AB;SALDO Fatt.n. 28/PA  del 30/12/2017 MATERIALE IDROTERMOSANITARIO;18-04-2018;140210;0;52;1;Spese correnti;3;Acquisto di beni e servizi;1;Acquisto di beni;2;Altri beni di consumo;999;Altri beni e materiali di consumo n.a.c.;18-04-2018;
329;1;0;"127,49";"127,49";GROUP ANTIFIRE ESTINTORI DI IANIERI MARIELLA;Z051D6658A;SALDO Fatt.n. 2/PA18  del 30/01/2018 RIF. SCHEDA TECNICA 33/B DEL 30/01/2018 - MANUTENZIONE SEMESTRALE;18-04-2018;140340;0;98;1;Spese correnti;3;Acquisto di beni e servizi;2;Acquisto di servizi;5;Utenze e canoni;999;Utenze e canoni per altri servizi n.a.c.;18-04-2018;
330;1;0;"14.030,00";"14.030,00";CLIMATERM SRL;Z58217F215;SALDO Fatt.n. 5  del 31/01/2018 SOSTITUZIONE CALDAIA SEDE COMUNALE;18-04-2018;290026;0;217;2;Spese in conto capitale;2;Investimenti fissi lordi e acquisto di terreni;1;Beni materiali;9;Beni immobili;14;Opere per la sistemazione del suolo;18-04-2018;
331;1;0;"257,00";"1.405,26";ANXA ENERGY SRL;Z5220E508C;SALDO Fatt.n. B/59  del 28/02/2018 GASOLIO E BENZINA DI FEBBRAIO 2018;18-04-2018;170108;0;183;1;Spese correnti;3;Acquisto di beni e servizi;1;Acquisto di beni;2;Altri beni di consumo;2;"Carburanti, combustibili e lubrificanti";18-04-2018;
331;2;0;"525,00";"1.405,26";ANXA ENERGY SRL;Z5220E508C;SALDO Fatt.n. B/57  del 31/01/2018 GASOLIO E BENZINA;18-04-2018;170108;0;183;1;Spese correnti;3;Acquisto di beni e servizi;1;Acquisto di beni;2;Altri beni di consumo;2;"Carburanti, combustibili e lubrificanti";18-04-2018;
331;3;0;"623,26";"1.405,26";ANXA ENERGY SRL;Z5220E508C;SALDO Fatt.n. B/63  del 31/03/2018 GASOLIO E BENZINA MARZO 2018;18-04-2018;170108;0;183;1;Spese correnti;3;Acquisto di beni e servizi;1;Acquisto di beni;2;Altri beni di consumo;2;"Carburanti, combustibili e lubrificanti";18-04-2018;
332;1;0;"4.270,00";"4.270,00";CA.TER. S.R.L.;Z7921E3E0B;SALDO Fatt.n. 6/003  del 28/02/2018 TESTATA TRINCIANTE FERRI;18-04-2018;170112;0;215;1;Spese correnti;3;Acquisto di beni e servizi;1;Acquisto di beni;2;Altri beni di consumo;999;Altri beni e materiali di consumo n.a.c.;18-04-2018;
333;1;0;"499,00";"499,00";MEDIASS S.P.A.;Z8A234EB14;POLIZZA UNIPOL - SAI PER AUTOCARRO tg. EX386TS;24-04-2018;110602;0;101;1;Spese correnti;10;Altre spese correnti;4;Premi di assicurazione;1;Premi di assicurazione contro i danni;999;Altri premi di assicurazione contro i danni;24-04-2018;
336;1;0;"295,60";"295,60";ECONOMO COMUNALE; ;RIMBORSO SPESE ECONOMALI PRIMO TRIMESTRE 2018;24-04-2018;110224;0;6;1;Spese correnti;3;Acquisto di beni e servizi;1;Acquisto di beni;2;Altri beni di consumo;999;Altri beni e materiali di consumo n.a.c.;24-04-2018;
337;1;0;"101,59";"101,59";ECONOMO COMUNALE; ;RIMBORSO SPESE ECONOMALI PRIMO TRIMESTRE 2018;24-04-2018;110258;0;10;1;Spese correnti;3;Acquisto di beni e servizi;1;Acquisto di beni;2;Altri beni di consumo;999;Altri beni e materiali di consumo n.a.c.;24-04-2018;
338;1;0;"95,00";"95,00";ECONOMO COMUNALE;Z131D55DA5;RIMBORSO SPESE ECONOMALI PRIMO TRIMESTRE 2018;24-04-2018;110236;0;24;1;Spese correnti;3;Acquisto di beni e servizi;1;Acquisto di beni;2;Altri beni di consumo;999;Altri beni e materiali di consumo n.a.c.;24-04-2018;
339;1;0;"22,50";"22,50";ECONOMO COMUNALE; ;RIMBORSO SPESE ECONOMALI PRIMO TRIMESTRE 2018;24-04-2018;110260;0;9;1;Spese correnti;3;Acquisto di beni e servizi;2;Acquisto di servizi;16;Servizi amministrativi;2;Spese postali;24-04-2018;
340;1;0;"48,00";"48,00";ECONOMO COMUNALE; ;RIMBORSO SPESE ECONOMALI PRIMO TRIMESTRE 2018;24-04-2018;170108;0;17;1;Spese correnti;3;Acquisto di beni e servizi;1;Acquisto di beni;2;Altri beni di consumo;2;"Carburanti, combustibili e lubrificanti";24-04-2018;
343;1;0;"45.454,55";"45.454,55";LECCE WAVE DI LECCE LUCA;68565289E4;ACCONTO Fatt.n. 02/PA/2018  del 25/01/2018 COMPLETAMENTO MESSA IN SICUREZZA EDIFICIO SCOLASTICO DEL CAPOLUOGO DEL COMUNE DI ROCCA SAN GIOVANNI;02-05-2018;240240;0;178;2;Spese in conto capitale;2;Investimenti fissi lordi e acquisto di terreni;1;Beni materiali;9;Beni immobili;3;Fabbricati ad uso scolastico;02-05-2018;
344;1;0;"100.914,30";"100.914,30";EURORESTAURI S.R.L.;68565289E4;SALDO Fatt.n. FATTPA 9_17  del 03/10/2017 LAVORI DI COMPLETAMENTO MESSA IN SICUREZZA EDIFICIO SCOLASTICO DEL CAPOLUOGO -CERTIFICATO DI PAGAMENTO N. 1;02-05-2018;240240;0;178;2;Spese in conto capitale;2;Investimenti fissi lordi e acquisto di terreni;1;Beni materiali;9;Beni immobili;3;Fabbricati ad uso scolastico;02-05-2018;
345;1;0;"92.920,42";"92.920,42";EURORESTAURI S.R.L.;68565289E4;ACCONTO Fatt.n. FATTPA 1_18  del 11/01/2018 COMPLETAMENTO MESSA IN SICUREZZA EDIFICIO SCOLASTICO CAPOLUOGO;02-05-2018;240240;0;178;2;Spese in conto capitale;2;Investimenti fissi lordi e acquisto di terreni;1;Beni materiali;9;Beni immobili;3;Fabbricati ad uso scolastico;02-05-2018;
346;1;0;"33.343,23";"33.343,23";PAOLUCCI GIUSEPPE;Z0E0826CBC;"ACCONTO Fatt.n. 1/PA  del 17/04/2018 operazione IVA ai sensi dell' art.17 ter D.P.R.633/72, come modificato dal D.L. 50/2017. Scissione dei pagamenti";02-05-2018;240240;0;137;2;Spese in conto capitale;2;Investimenti fissi lordi e acquisto di terreni;1;Beni materiali;9;Beni immobili;3;Fabbricati ad uso scolastico;02-05-2018;
347;1;0;"15.772,01";"15.772,01";PAOLUCCI GIUSEPPE;68565289E4;"SALDO Fatt.n. 1/PA  del 17/04/2018 operazione IVA ai sensi dell' art.17 ter D.P.R.633/72, come modificato dal D.L. 50/2017. Scissione dei pagamenti";02-05-2018;240240;0;178;2;Spese in conto capitale;2;Investimenti fissi lordi e acquisto di terreni;1;Beni materiali;9;Beni immobili;3;Fabbricati ad uso scolastico;02-05-2018;
348;1;0;"9,51";"11,45";AUTOSTRADE PER L'ITALIA;0;ACCONTO Fatt.n. 900008422D  del 30/04/2018 PEDAGGI AUTPOSTRADALI APRILE 2018;02-05-2018;130132;0;56;1;Spese correnti;3;Acquisto di beni e servizi;2;Acquisto di servizi;13;Servizi ausiliari per il funzionamento dell'ente;999;Altri servizi ausiliari n.a.c.;02-05-2018;
348;2;0;"0,91";"11,45";BANCA POPOLARE DELL'EMILIA ROMAGNA; ;PEDAGGI AUTOSTRADALI;02-05-2018;130132;0;56;1;Spese correnti;3;Acquisto di beni e servizi;2;Acquisto di servizi;13;Servizi ausiliari per il funzionamento dell'ente;999;Altri servizi ausiliari n.a.c.;02-05-2018;
348;3;0;"1,03";"11,45";TELEPASS S.P.A.;0;ACCONTO Fatt.n. 900008676T  del 30/04/2018 CANONE LOCAZIONE TELEPASS APRILE 2018;02-05-2018;130132;0;56;1;Spese correnti;3;Acquisto di beni e servizi;2;Acquisto di servizi;13;Servizi ausiliari per il funzionamento dell'ente;999;Altri servizi ausiliari n.a.c.;02-05-2018;
349;1;0;"27,51";"27,51";TELECOM ITALIA S.P.A.;Z53178E0E3;ACCONTO Fatt.n. 7X05522153  del 15/12/2017 1BIM 2018 - SOLUZIONE TOP HOLDING;02-05-2018;130132;0;40;1;Spese correnti;3;Acquisto di beni e servizi;2;Acquisto di servizi;13;Servizi ausiliari per il funzionamento dell'ente;999;Altri servizi ausiliari n.a.c.;02-05-2018;
350;1;0;"965,83";"965,83";BLUE LINE SOC. COOP. SOCIALE;X0919A7161;SALDO Fatt.n. 306  del 31/10/2017 PULIZIA DEI LOCALI COMUNALI NEL MESE DI OTTOBRE 2017;02-05-2018;110256;0;143;1;Spese correnti;3;Acquisto di beni e servizi;2;Acquisto di servizi;13;Servizi ausiliari per il funzionamento dell'ente;2;Servizi di pulizia e lavanderia;02-05-2018;
351;1;0;"265,25";"265,25";EUROLUX S.R.L.;Z751D6645A;SALDO Fatt.n. 17/1337  del 31/10/2017 MATERIALE ELETTRICO;02-05-2018;170224;0;54;1;Spese correnti;3;Acquisto di beni e servizi;1;Acquisto di beni;2;Altri beni di consumo;999;Altri beni e materiali di consumo n.a.c.;02-05-2018;
352;1;0;"1.586,00";"1.586,00";RINA SERVICES S.P.A.;XB419A7163;SALDO Fatt.n. SI/2017/P8/805  del 30/11/2017 VISITE ANNUALI DI SORVEGLIANZA ISO 14001:2004;02-05-2018;161236;0;150;1;Spese correnti;3;Acquisto di beni e servizi;2;Acquisto di servizi;10;Consulenze;1;"Incarichi libero professionali di studi, ricerca e consulenza";02-05-2018;
353;1;0;"1.903,20";"1.903,20";MORETTI CRISTIAN;Z071D66519;SALDO Fatt.n. 7PA  del 30/11/2017 PIETRISCO DI FIUME E STABILIZZATO DI MONTAGNA;02-05-2018;270116;0;49;2;Spese in conto capitale;2;Investimenti fissi lordi e acquisto di terreni;1;Beni materiali;99;Altri beni materiali;999;Altri beni materiali diversi;02-05-2018;
354;1;0;"540,05";"2.168,75";RENZETTI SNC DI GABRIELE E NICOLA;ZD71D66546;SALDO Fatt.n. 17/02  del 23/08/2017 MANUTENZIONE SCUOLABUS      BC 334 RJ;02-05-2018;170146;0;56;1;Spese correnti;3;Acquisto di beni e servizi;2;Acquisto di servizi;9;Manutenzione ordinaria e riparazioni;1;"Manutenzione ordinaria e riparazioni di mezzi di trasporto ad uso civile, di sicurezza e ordine pubblico";02-05-2018;
354;2;0;"1.628,70";"2.168,75";STREPPA CARLO ANTONIO NATO IL 16.07.1953 A LANCIANO;ZD71D66546;SALDO Fatt.n. 06/PA  del 11/08/2017 RIPARAZIONE TERNA;02-05-2018;170146;0;56;1;Spese correnti;3;Acquisto di beni e servizi;2;Acquisto di servizi;9;Manutenzione ordinaria e riparazioni;1;"Manutenzione ordinaria e riparazioni di mezzi di trasporto ad uso civile, di sicurezza e ordine pubblico";02-05-2018;
355;1;0;"965,83";"965,83";BLUE LINE SOC. COOP. SOCIALE;X0919A7161;SALDO Fatt.n. 351  del 30/11/2017 PULIZIA DEI LOCALI COMUNALI NEL MESE DI NOVEMBRE 2017;02-05-2018;110256;0;143;1;Spese correnti;3;Acquisto di beni e servizi;2;Acquisto di servizi;13;Servizi ausiliari per il funzionamento dell'ente;2;Servizi di pulizia e lavanderia;02-05-2018;
356;1;0;"77,65";"174,24";E.N.E.L. SERVIZIO ELETTRICO S.P.A.;X37139C8F1;SALDO Fatt.n. 691065500330514  del 09/11/2017 ENERGIA ELETTRICA - C.DA VALLEVO' SN;02-05-2018;110636;0;95;1;Spese correnti;3;Acquisto di beni e servizi;2;Acquisto di servizi;5;Utenze e canoni;4;Energia elettrica;02-05-2018;
356;2;0;"96,59";"174,24";E.N.E.L. SERVIZIO ELETTRICO S.P.A.;X37139C8F1;SALDO Fatt.n. 691065313504013  del 09/11/2017 ENERGIA ELETTRICA - C.DA PERAZZA 38;02-05-2018;110636;0;95;1;Spese correnti;3;Acquisto di beni e servizi;2;Acquisto di servizi;5;Utenze e canoni;4;Energia elettrica;02-05-2018;
357;1;0;"174,51";"174,51";E.N.E.L. SERVIZIO ELETTRICO S.P.A.;X37139C8F1;SALDO Fatt.n. 691065110702514  del 09/11/2017 ENERGIA ELETTRICA - OROLOGIO TORRE CIVICA;02-05-2018;110638;0;48;1;Spese correnti;3;Acquisto di beni e servizi;2;Acquisto di servizi;5;Utenze e canoni;4;Energia elettrica;02-05-2018;
358;1;0;"219,27";"533,13";E.N.E.L. SERVIZIO ELETTRICO S.P.A.;X37139C8F1;SALDO Fatt.n. 691065280311514  del 09/11/2017 ENERGIA ELETTRICA - ELETTROPOMPA  VIA OCCIDENTALE SN -;02-05-2018;160810;0;101;1;Spese correnti;3;Acquisto di beni e servizi;2;Acquisto di servizi;5;Utenze e canoni;4;Energia elettrica;02-05-2018;
358;2;0;"313,86";"533,13";E.N.E.L. SERVIZIO ELETTRICO S.P.A.;X37139C8F1;SALDO Fatt.n. 691065500518513  del 09/11/2017 ENERGIA ELETTRICA - DEPURATORE C.DA VALLEVO';02-05-2018;160810;0;101;1;Spese correnti;3;Acquisto di beni e servizi;2;Acquisto di servizi;5;Utenze e canoni;4;Energia elettrica;02-05-2018;
359;1;0;"-45,00";"94,06";E.N.E.L. SERVIZIO ELETTRICO S.P.A.;X37139C8F1;SALDO Fatt.n. 691065410012025  del 03/12/2017 ENERGIA ELETTRICA - NOTA CREDITO SU POD IT001E61691145;02-05-2018;180530;0;107;1;Spese correnti;3;Acquisto di beni e servizi;2;Acquisto di servizi;5;Utenze e canoni;4;Energia elettrica;02-05-2018;
359;2;0;"65,93";"94,06";E.N.E.L. SERVIZIO ELETTRICO S.P.A.;X37139C8F1;SALDO Fatt.n. 691065380301017  del 09/11/2017 ENERGIA ELETTRICA - C.DA PUNCICHITTI 1;02-05-2018;180530;0;107;1;Spese correnti;3;Acquisto di beni e servizi;2;Acquisto di servizi;5;Utenze e canoni;4;Energia elettrica;02-05-2018;
359;3;0;"73,13";"94,06";E.N.E.L. SERVIZIO ELETTRICO S.P.A.;X37139C8F1;SALDO Fatt.n. 691065410012024  del 09/11/2017 ENERGIA ELETTRICA - C.DA S. CALCAGNA SN;02-05-2018;180530;0;107;1;Spese correnti;3;Acquisto di beni e servizi;2;Acquisto di servizi;5;Utenze e canoni;4;Energia elettrica;02-05-2018;
360;1;0;"10,69";"2.030,26";E.N.E.L. ENERGIA S.P.A.;X37139C8F1;SALDO Fatt.n. 004801548111  del 08/11/2017 P.I. VIA STERPARI SNC;02-05-2018;170236;0;105;1;Spese correnti;3;Acquisto di beni e servizi;2;Acquisto di servizi;5;Utenze e canoni;4;Energia elettrica;02-05-2018;
360;2;0;"15,04";"2.030,26";E.N.E.L. ENERGIA S.P.A.;X37139C8F1;SALDO Fatt.n. 004801548108  del 08/11/2017 P.I. VIA SCALZINO;02-05-2018;170236;0;105;1;Spese correnti;3;Acquisto di beni e servizi;2;Acquisto di servizi;5;Utenze e canoni;4;Energia elettrica;02-05-2018;
360;3;0;"17,58";"2.030,26";E.N.E.L. ENERGIA S.P.A.;X37139C8F1;SALDO Fatt.n. 004801548114  del 08/11/2017 P.I. VIA MONTEGRANARO SNC;02-05-2018;170236;0;105;1;Spese correnti;3;Acquisto di beni e servizi;2;Acquisto di servizi;5;Utenze e canoni;4;Energia elettrica;02-05-2018;
360;4;0;"21,25";"2.030,26";E.N.E.L. ENERGIA S.P.A.;X37139C8F1;SALDO Fatt.n. 004801548105  del 08/11/2017 P.I. VIA STERPARI DEL GARDA SNC;02-05-2018;170236;0;105;1;Spese correnti;3;Acquisto di beni e servizi;2;Acquisto di servizi;5;Utenze e canoni;4;Energia elettrica;02-05-2018;
360;5;0;"35,08";"2.030,26";E.N.E.L. ENERGIA S.P.A.;X37139C8F1;SALDO Fatt.n. 004801548107  del 08/11/2017 P.I. VIA NOVELLA II SNC;02-05-2018;170236;0;105;1;Spese correnti;3;Acquisto di beni e servizi;2;Acquisto di servizi;5;Utenze e canoni;4;Energia elettrica;02-05-2018;
360;6;0;"76,20";"2.030,26";E.N.E.L. ENERGIA S.P.A.;X37139C8F1;SALDO Fatt.n. 004801548106  del 08/11/2017 P.I. VIA SCALZINO SNC;02-05-2018;170236;0;105;1;Spese correnti;3;Acquisto di beni e servizi;2;Acquisto di servizi;5;Utenze e canoni;4;Energia elettrica;02-05-2018;
360;7;0;"91,56";"2.030,26";E.N.E.L. ENERGIA S.P.A.;X37139C8F1;SALDO Fatt.n. 004801548109  del 08/11/2017 P.I. VIA PERAZZA 87;02-05-2018;170236;0;105;1;Spese correnti;3;Acquisto di beni e servizi;2;Acquisto di servizi;5;Utenze e canoni;4;Energia elettrica;02-05-2018;
360;8;0;"105,35";"2.030,26";E.N.E.L. ENERGIA S.P.A.;X37139C8F1;SALDO Fatt.n. 004801548104  del 08/11/2017 P.I.  FRAZ. LAPPETO;02-05-2018;170236;0;105;1;Spese correnti;3;Acquisto di beni e servizi;2;Acquisto di servizi;5;Utenze e canoni;4;Energia elettrica;02-05-2018;
360;9;0;"105,58";"2.030,26";E.N.E.L. ENERGIA S.P.A.;X37139C8F1;SALDO Fatt.n. 004801548118  del 08/11/2017 P.I. VIA BOCACHE SNC;02-05-2018;170236;0;105;1;Spese correnti;3;Acquisto di beni e servizi;2;Acquisto di servizi;5;Utenze e canoni;4;Energia elettrica;02-05-2018;
360;10;0;"114,03";"2.030,26";E.N.E.L. ENERGIA S.P.A.;X37139C8F1;SALDO Fatt.n. 004801548110  del 08/11/2017 P.I. VIA PERAZZA SNC;02-05-2018;170236;0;105;1;Spese correnti;3;Acquisto di beni e servizi;2;Acquisto di servizi;5;Utenze e canoni;4;Energia elettrica;02-05-2018;
360;11;0;"146,81";"2.030,26";E.N.E.L. ENERGIA S.P.A.;X37139C8F1;SALDO Fatt.n. 004801548117  del 08/11/2017 P.I. VIA  VALLEVO' SNC;02-05-2018;170236;0;105;1;Spese correnti;3;Acquisto di beni e servizi;2;Acquisto di servizi;5;Utenze e canoni;4;Energia elettrica;02-05-2018;
360;12;0;"173,76";"2.030,26";E.N.E.L. ENERGIA S.P.A.;X37139C8F1;SALDO Fatt.n. 004801548116  del 08/11/2017 P.I. VIA NOVELLA II SNC;02-05-2018;170236;0;105;1;Spese correnti;3;Acquisto di beni e servizi;2;Acquisto di servizi;5;Utenze e canoni;4;Energia elettrica;02-05-2018;
360;13;0;"176,38";"2.030,26";E.N.E.L. ENERGIA S.P.A.;X37139C8F1;SALDO Fatt.n. 004801548112  del 08/11/2017 P.I. VIA  S. GIACOMO;02-05-2018;170236;0;105;1;Spese correnti;3;Acquisto di beni e servizi;2;Acquisto di servizi;5;Utenze e canoni;4;Energia elettrica;02-05-2018;
360;14;0;"279,55";"2.030,26";E.N.E.L. ENERGIA S.P.A.;X37139C8F1;SALDO Fatt.n. 004801548119  del 08/11/2017 P.I. VIA S. CALCAGNA SNC;02-05-2018;170236;0;105;1;Spese correnti;3;Acquisto di beni e servizi;2;Acquisto di servizi;5;Utenze e canoni;4;Energia elettrica;02-05-2018;
360;15;0;"303,32";"2.030,26";E.N.E.L. ENERGIA S.P.A.;X37139C8F1;SALDO Fatt.n. 004801548115  del 08/11/2017 P.I. VIA PERAZZA SNC;02-05-2018;170236;0;105;1;Spese correnti;3;Acquisto di beni e servizi;2;Acquisto di servizi;5;Utenze e canoni;4;Energia elettrica;02-05-2018;
360;16;0;"358,08";"2.030,26";E.N.E.L. ENERGIA S.P.A.;X37139C8F1;SALDO Fatt.n. 004801548113  del 08/11/2017 P.I. VIA PAINE FAVARO;02-05-2018;170236;0;105;1;Spese correnti;3;Acquisto di beni e servizi;2;Acquisto di servizi;5;Utenze e canoni;4;Energia elettrica;02-05-2018;
361;1;0;"7,45";"4.467,53";E.N.E.L. ENERGIA S.P.A.;X37139C8F1;SALDO Fatt.n. 004801552884  del 08/11/2017 ENERGIA ELETTRICA - I.P.;02-05-2018;170236;0;105;1;Spese correnti;3;Acquisto di beni e servizi;2;Acquisto di servizi;5;Utenze e canoni;4;Energia elettrica;02-05-2018;
361;2;0;"8,15";"4.467,53";E.N.E.L. ENERGIA S.P.A.;X37139C8F1;SALDO Fatt.n. 004801552893  del 08/11/2017 ENERGIA ELETTRICA - I.P.;02-05-2018;170236;0;105;1;Spese correnti;3;Acquisto di beni e servizi;2;Acquisto di servizi;5;Utenze e canoni;4;Energia elettrica;02-05-2018;
361;3;0;"15,04";"4.467,53";E.N.E.L. ENERGIA S.P.A.;X37139C8F1;SALDO Fatt.n. 004801552883  del 08/11/2017 ENERGIA ELETTRICA - I.P.;02-05-2018;170236;0;105;1;Spese correnti;3;Acquisto di beni e servizi;2;Acquisto di servizi;5;Utenze e canoni;4;Energia elettrica;02-05-2018;
361;4;0;"15,04";"4.467,53";E.N.E.L. ENERGIA S.P.A.;X37139C8F1;SALDO Fatt.n. 004801552892  del 08/11/2017 ENERGIA ELETTRICA - I.P.;02-05-2018;170236;0;105;1;Spese correnti;3;Acquisto di beni e servizi;2;Acquisto di servizi;5;Utenze e canoni;4;Energia elettrica;02-05-2018;
361;5;0;"20,97";"4.467,53";E.N.E.L. ENERGIA S.P.A.;X37139C8F1;SALDO Fatt.n. 004801552888  del 08/11/2017 ENERGIA ELETTRICA - I.P.;02-05-2018;170236;0;105;1;Spese correnti;3;Acquisto di beni e servizi;2;Acquisto di servizi;5;Utenze e canoni;4;Energia elettrica;02-05-2018;
361;6;0;"36,80";"4.467,53";E.N.E.L. ENERGIA S.P.A.;X37139C8F1;SALDO Fatt.n. 004801582858  del 13/11/2017 ENERGIA ELETTRICA - I.P.;02-05-2018;170236;0;105;1;Spese correnti;3;Acquisto di beni e servizi;2;Acquisto di servizi;5;Utenze e canoni;4;Energia elettrica;02-05-2018;
361;7;0;"36,99";"4.467,53";E.N.E.L. ENERGIA S.P.A.;X37139C8F1;SALDO Fatt.n. 004801552881  del 08/11/2017 ENERGIA ELETTRICA - I.P.;02-05-2018;170236;0;105;1;Spese correnti;3;Acquisto di beni e servizi;2;Acquisto di servizi;5;Utenze e canoni;4;Energia elettrica;02-05-2018;
361;8;0;"38,08";"4.467,53";E.N.E.L. ENERGIA S.P.A.;X37139C8F1;SALDO Fatt.n. 004801552880  del 08/11/2017 ENERGIA ELETTRICA - I.P.;02-05-2018;170236;0;105;1;Spese correnti;3;Acquisto di beni e servizi;2;Acquisto di servizi;5;Utenze e canoni;4;Energia elettrica;02-05-2018;
361;9;0;"60,76";"4.467,53";E.N.E.L. ENERGIA S.P.A.;X37139C8F1;SALDO Fatt.n. 004801552891  del 08/11/2017 ENERGIA ELETTRICA - I.P.;02-05-2018;170236;0;105;1;Spese correnti;3;Acquisto di beni e servizi;2;Acquisto di servizi;5;Utenze e canoni;4;Energia elettrica;02-05-2018;
361;10;0;"80,93";"4.467,53";E.N.E.L. ENERGIA S.P.A.;X37139C8F1;SALDO Fatt.n. 004801552889  del 08/11/2017 ENERGIA ELETTRICA - I.P.;02-05-2018;170236;0;105;1;Spese correnti;3;Acquisto di beni e servizi;2;Acquisto di servizi;5;Utenze e canoni;4;Energia elettrica;02-05-2018;
361;11;0;"82,34";"4.467,53";E.N.E.L. ENERGIA S.P.A.;X37139C8F1;SALDO Fatt.n. 004801273780  del 13/09/2017 ENERGIA ELETTRICA - I.P.;02-05-2018;170236;0;105;1;Spese correnti;3;Acquisto di beni e servizi;2;Acquisto di servizi;5;Utenze e canoni;4;Energia elettrica;02-05-2018;
361;12;0;"117,29";"4.467,53";E.N.E.L. ENERGIA S.P.A.;X37139C8F1;SALDO Fatt.n. 004801552890  del 08/11/2017 ENERGIA ELETTRICA - I.P.;02-05-2018;170236;0;105;1;Spese correnti;3;Acquisto di beni e servizi;2;Acquisto di servizi;5;Utenze e canoni;4;Energia elettrica;02-05-2018;
361;13;0;"119,83";"4.467,53";E.N.E.L. ENERGIA S.P.A.;X37139C8F1;SALDO Fatt.n. 004801552887  del 08/11/2017 ENERGIA ELETTRICA - I.P.;02-05-2018;170236;0;105;1;Spese correnti;3;Acquisto di beni e servizi;2;Acquisto di servizi;5;Utenze e canoni;4;Energia elettrica;02-05-2018;
361;14;0;"255,97";"4.467,53";E.N.E.L. ENERGIA S.P.A.;X37139C8F1;SALDO Fatt.n. 004801552894  del 08/11/2017 ENERGIA ELETTRICA - I.P.;02-05-2018;170236;0;105;1;Spese correnti;3;Acquisto di beni e servizi;2;Acquisto di servizi;5;Utenze e canoni;4;Energia elettrica;02-05-2018;
361;15;0;"258,32";"4.467,53";E.N.E.L. ENERGIA S.P.A.;X37139C8F1;SALDO Fatt.n. 004801555328  del 08/11/2017 ENERGIA ELETTRICA - I.P.;02-05-2018;170236;0;105;1;Spese correnti;3;Acquisto di beni e servizi;2;Acquisto di servizi;5;Utenze e canoni;4;Energia elettrica;02-05-2018;
361;16;0;"794,29";"4.467,53";E.N.E.L. ENERGIA S.P.A.;X37139C8F1;SALDO Fatt.n. 004801552885  del 08/11/2017 ENERGIA ELETTRICA - I.P.;02-05-2018;170236;0;105;1;Spese correnti;3;Acquisto di beni e servizi;2;Acquisto di servizi;5;Utenze e canoni;4;Energia elettrica;02-05-2018;
361;17;0;"900,80";"4.467,53";E.N.E.L. ENERGIA S.P.A.;X37139C8F1;SALDO Fatt.n. 004801585042  del 13/11/2017;02-05-2018;170236;0;105;1;Spese correnti;3;Acquisto di beni e servizi;2;Acquisto di servizi;5;Utenze e canoni;4;Energia elettrica;02-05-2018;
361;18;0;"1.618,48";"4.467,53";E.N.E.L. ENERGIA S.P.A.;X37139C8F1;SALDO Fatt.n. 004801552882  del 08/11/2017 ENERGIA ELETTRICA - I.P.;02-05-2018;170236;0;105;1;Spese correnti;3;Acquisto di beni e servizi;2;Acquisto di servizi;5;Utenze e canoni;4;Energia elettrica;02-05-2018;
362;1;0;"531,65";"531,65";E.N.E.L. ENERGIA S.P.A.;XE2139C8F3;SALDO Fatt.n. 004801382167  del 08/10/2017 ENERGIA ELETTRICA V.LE PAOLUCCI R. SNC AGOSTO-SETT. 2017;02-05-2018;140344;0;89;1;Spese correnti;3;Acquisto di beni e servizi;2;Acquisto di servizi;5;Utenze e canoni;999;Utenze e canoni per altri servizi n.a.c.;02-05-2018;
363;1;0;"45,19";"45,19";E.N.E.L. ENERGIA S.P.A.;X37139C8F1;SALDO Fatt.n. 004801552886  del 08/11/2017 ENERGIA ELETTRICA -VIA FOCE SNC;02-05-2018;180530;0;107;1;Spese correnti;3;Acquisto di beni e servizi;2;Acquisto di servizi;5;Utenze e canoni;4;Energia elettrica;02-05-2018;
364;1;0;"498,32";"498,32";E.N.E.L. ENERGIA S.P.A.;X37139C8F1;SALDO Fatt.n. 004801550642  del 08/11/2017 ENERGIA ELETTRICA -  IM.P. FOTOVOLTAICO;02-05-2018;180636;0;106;1;Spese correnti;3;Acquisto di beni e servizi;2;Acquisto di servizi;5;Utenze e canoni;4;Energia elettrica;02-05-2018;
365;1;0;"186,73";"186,73";IMPIANTISTICA ANTINFORTUNISTICA SRL;Z702082F0F;SALDO Fatt.n. FATTPA 22_17  del 30/10/2017 VERIFICA PERIODICA ASCENSORE;02-05-2018;140140;0;157;1;Spese correnti;3;Acquisto di beni e servizi;1;Acquisto di beni;2;Altri beni di consumo;8;Strumenti tecnico-specialistici non sanitari;02-05-2018;
366;1;0;"183,00";"183,00";AMBIQ S.R.L.;Z0D1D662CB;SALDO Fatt.n. 539/2017  del 30/11/2017 DERATTIZZAZIONE DEL 23/11/2017;02-05-2018;161232;0;85;1;Spese correnti;3;Acquisto di beni e servizi;2;Acquisto di servizi;15;Contratti di servizio pubblico;999;Altre spese per contratti di servizio pubblico;02-05-2018;
367;1;0;"328,19";"380,00";DELLE VIGNE TOMMASO S.R.L.;Z8C1D664AB;SALDO Fatt.n. 963/02  del 31/10/2017 FERRAMENTA;02-05-2018;140140;0;51;1;Spese correnti;3;Acquisto di beni e servizi;1;Acquisto di beni;2;Altri beni di consumo;999;Altri beni e materiali di consumo n.a.c.;02-05-2018;
367;2;0;"51,81";"380,00";VEMAC S.R.L.;Z8C1D664AB;SALDO Fatt.n. 000205  del 30/11/2017 MATERIALE EDILE;02-05-2018;140140;0;51;1;Spese correnti;3;Acquisto di beni e servizi;1;Acquisto di beni;2;Altri beni di consumo;999;Altri beni e materiali di consumo n.a.c.;02-05-2018;
368;1;0;"274,91";"274,91";DELLE VIGNE TOMMASO S.R.L.;Z1D1D6632F;SALDO Fatt.n. 1084/02  del 30/11/2017 FERRAMENTA;02-05-2018;170112;0;53;1;Spese correnti;3;Acquisto di beni e servizi;1;Acquisto di beni;2;Altri beni di consumo;999;Altri beni e materiali di consumo n.a.c.;02-05-2018;
369;1;0;"965,65";"965,65";Pagliani Tommaso; ;SALDO Fatt.n. FATTPA 3_18  del 09/01/2018 INCARICO PREDISPOSIZIONE VERIFICA ASSOGGETTABILITA' VAS PIANO DEMANIALE MARITTIMO COMUNALE;02-05-2018;161236;0;20;1;Spese correnti;3;Acquisto di beni e servizi;2;Acquisto di servizi;10;Consulenze;1;"Incarichi libero professionali di studi, ricerca e consulenza";02-05-2018;
370;1;0;"9.801,00";"9.801,00";IEZZI TRAVEL SRL;6770169831;SALDO Fatt.n. FATTPA 2_18  del 30/01/2018 TRASPORTO SCOLASTICO DI GENNAIO 2018;02-05-2018;140448;0;223;1;Spese correnti;3;Acquisto di beni e servizi;2;Acquisto di servizi;15;Contratti di servizio pubblico;2;Contratti di servizio di trasporto scolastico;02-05-2018;
371;1;0;"97,43";"555,25";EDIF SPA;ZEF2230EEC;SALDO Fatt.n. 000200  del 30/03/2018 MATERIALE ELETTRICO;02-05-2018;170224;0;75;1;Spese correnti;3;Acquisto di beni e servizi;1;Acquisto di beni;2;Altri beni di consumo;999;Altri beni e materiali di consumo n.a.c.;02-05-2018;
371;2;0;"110,57";"555,25";EDIF SPA;ZEF2230EEC;SALDO Fatt.n. 000136  del 28/02/2018 MATERIALE ELETTRICO;02-05-2018;170224;0;75;1;Spese correnti;3;Acquisto di beni e servizi;1;Acquisto di beni;2;Altri beni di consumo;999;Altri beni e materiali di consumo n.a.c.;02-05-2018;
371;3;0;"21,59";"555,25";EUROLUX S.R.L.;ZEF2230EEC;SALDO Fatt.n. 18/338  del 31/03/2018 MATERIALE ELETTRICO;02-05-2018;170224;0;75;1;Spese correnti;3;Acquisto di beni e servizi;1;Acquisto di beni;2;Altri beni di consumo;999;Altri beni e materiali di consumo n.a.c.;02-05-2018;
371;4;0;"82,86";"555,25";EUROLUX S.R.L.;ZEF2230EEC;SALDO Fatt.n. 18/199  del 28/02/2018 MATERIALE ELETTRICO;02-05-2018;170224;0;75;1;Spese correnti;3;Acquisto di beni e servizi;1;Acquisto di beni;2;Altri beni di consumo;999;Altri beni e materiali di consumo n.a.c.;02-05-2018;
371;5;0;"242,80";"555,25";EUROLUX S.R.L.;ZEF2230EEC;SALDO Fatt.n. 18/62  del 31/01/2018 MATERIALE ELETTRICO;02-05-2018;170224;0;75;1;Spese correnti;3;Acquisto di beni e servizi;1;Acquisto di beni;2;Altri beni di consumo;999;Altri beni e materiali di consumo n.a.c.;02-05-2018;
372;1;0;"3.904,38";"3.904,38";DI RITO GIOVANNI ENZO; ;Indennita' di funzione Sindaco luglio-dicembre 2016;04-05-2018;110134;0;161;1;Spese correnti;3;Acquisto di beni e servizi;2;Acquisto di servizi;1;Organi e incarichi istituzionali dell'amministrazione;1;Organi istituzionali dell'amministrazione - Indennit�;04-05-2018;
373;1;0;"3.123,60";"3.123,60";D'ANGELO GIOVANNI; ;Indennita' di funzione Vice-Sindaco 2017;04-05-2018;110134;0;162;1;Spese correnti;3;Acquisto di beni e servizi;2;Acquisto di servizi;1;Organi e incarichi istituzionali dell'amministrazione;1;Organi istituzionali dell'amministrazione - Indennit�;04-05-2018;
374;1;0;"2.342,64";"2.342,64";MARTELLI DOMENICO; ;INDENNITA' DI FUNZIONE 2017;04-05-2018;110134;0;163;1;Spese correnti;3;Acquisto di beni e servizi;2;Acquisto di servizi;1;Organi e incarichi istituzionali dell'amministrazione;1;Organi istituzionali dell'amministrazione - Indennit�;04-05-2018;
375;1;0;"7.808,76";"7.808,76";DI RITO GIOVANNI ENZO; ;Indennita' di funzione Sindaco 2017;04-05-2018;110134;0;161;1;Spese correnti;3;Acquisto di beni e servizi;2;Acquisto di servizi;1;Organi e incarichi istituzionali dell'amministrazione;1;Organi istituzionali dell'amministrazione - Indennit�;04-05-2018;
376;1;0;"806,32";"806,32";MEDIASS S.P.A.;Z6422A13EA;LIQUIDAZIONE POLIZZE UNIPOL-SAI PER AUTOVETTURA tg. YA942AD;04-05-2018;130136;0;58;1;Spese correnti;10;Altre spese correnti;4;Premi di assicurazione;1;Premi di assicurazione contro i danni;3;Premi di assicurazione per responsabilit� civile verso terzi;04-05-2018;
377;1;0;"290,81";"290,81";MEDIASS S.P.A.;Z8E22A1378;LIQUIDAZIONE POLIZZE UNIPOL-SAI PER VEICOLO tg. EC41568;04-05-2018;110602;0;61;1;Spese correnti;10;Altre spese correnti;4;Premi di assicurazione;1;Premi di assicurazione contro i danni;3;Premi di assicurazione per responsabilit� civile verso terzi;04-05-2018;
378;1;0;"200,00";"200,00";MEDIASS S.P.A.; ;LIQUIDAZIONE POLIZZE ASSICURATIVE MEZZI COMUNALI.POLIZZA FIAT PUNTO TG.CD838CN;04-05-2018;130134;0;107;1;Spese correnti;3;Acquisto di beni e servizi;2;Acquisto di servizi;9;Manutenzione ordinaria e riparazioni;1;"Manutenzione ordinaria e riparazioni di mezzi di trasporto ad uso civile, di sicurezza e ordine pubblico";04-05-2018;
379;1;0;"335,00";"335,00";MEDIASS S.P.A.;Z39236CD35;LIQUIDAZIONE POLIZZE ASSICURATIVE MEZZI COMUNALI.TG.AFR235;04-05-2018;110602;0;109;1;Spese correnti;10;Altre spese correnti;4;Premi di assicurazione;1;Premi di assicurazione contro i danni;3;Premi di assicurazione per responsabilit� civile verso terzi;04-05-2018;
380;1;0;"550,00";"550,00";MEDIASS S.P.A.;Z12236CE76;LIQUIDAZIONE POLIZZE ASSICURATIVE MEZZI COMUNALI.CG361865;04-05-2018;110602;0;110;1;Spese correnti;10;Altre spese correnti;4;Premi di assicurazione;1;Premi di assicurazione contro i danni;3;Premi di assicurazione per responsabilit� civile verso terzi;04-05-2018;
383;1;0;"22,27";"22,27";A.C.I.;Z091CDD64A;SALDO Fatt.n. 0000001370  del 20/01/2017 CONSULTAZIONE VISURE EXTRA;04-05-2018;130132;0;64;1;Spese correnti;3;Acquisto di beni e servizi;2;Acquisto di servizi;13;Servizi ausiliari per il funzionamento dell'ente;999;Altri servizi ausiliari n.a.c.;04-05-2018;
384;1;0;"4.468,70";"4.468,70";COMUNE DI FOSSACESIA; ;LIQUIDAZIONE SPESA RELATIVA A DEBITO FUORI BILANCIO RICONOSCIUTO DAL C.C. AL COMUNE DI FOSSACESIA;04-05-2018;190018;0;115;1;Spese correnti;10;Altre spese correnti;99;Altre spese correnti n.a.c.;99;Altre spese correnti n.a.c.;999;Altre spese correnti n.a.c.;04-05-2018;
386;1;0;"145,59";"145,59";SEAL COOP. A R.L.;Z82203CB64;SALDO Fatt.n. PA09  del 31/01/2018 FORNITURA A SUPPORTO GESTIONE SERVIZIO PUBBLICHE AFFISSIONI;04-05-2018;110734;0;243;1;Spese correnti;3;Acquisto di beni e servizi;2;Acquisto di servizi;3;Aggi di riscossione;999;Altri aggi di riscossione n.a.c.;04-05-2018;
387;1;0;"844,97";"1.718,84";CONSORZIO COOPERATIVE SOCIALI S.G.S.;ZF0189D68F;SALDO Fatt.n. 37/10  del 30/01/2017 GESTIONE BIBLIOTECA DIC.2016;04-05-2018;140730;0;49;1;Spese correnti;3;Acquisto di beni e servizi;2;Acquisto di servizi;15;Contratti di servizio pubblico;999;Altre spese per contratti di servizio pubblico;04-05-2018;
387;2;0;"873,87";"1.718,84";CONSORZIO COOPERATIVE SOCIALI S.G.S.;ZF0189D68F;SALDO Fatt.n. 1379/10  del 06/12/2017 GESTIONE BIBLIOTECA COMUNALE DI NOVEMBRE 2017;04-05-2018;140730;0;49;1;Spese correnti;3;Acquisto di beni e servizi;2;Acquisto di servizi;15;Contratti di servizio pubblico;999;Altre spese per contratti di servizio pubblico;04-05-2018;
388;1;0;"4.522,90";"4.522,90";DELLA CROCE ANTONIO; ;ACCONTO Fatt.n. 1/2018  del 17/03/2018 compenso quale Revisore Unico del Comune di Rocca San Giovanni   Periodo 16/03/2017 - 15/03/2018;04-05-2018;110140;0;79;1;Spese correnti;3;Acquisto di beni e servizi;2;Acquisto di servizi;1;Organi e incarichi istituzionali dell'amministrazione;8;"Compensi agli organi istituzionali di revisione, di controllo ed altri incarichi istituzionali dell'amministrazione";04-05-2018;
389;1;0;"1.215,88";"1.215,88";DELLA CROCE ANTONIO; ;SALDO Fatt.n. 1/2018  del 17/03/2018 compenso quale Revisore Unico del Comune di Rocca San Giovanni   Periodo 16/03/2017 - 15/03/2018;04-05-2018;110140;0;82;1;Spese correnti;3;Acquisto di beni e servizi;2;Acquisto di servizi;1;Organi e incarichi istituzionali dell'amministrazione;8;"Compensi agli organi istituzionali di revisione, di controllo ed altri incarichi istituzionali dell'amministrazione";04-05-2018;
390;1;0;"286,70";"286,70";ARUBA S.P.A.;ZBA20C6102;SALDO Fatt.n. A17PAS0013847  del 30/11/2017 SPESE PER DOMINI E CASELLE DI POSTA CERTIFICATA;04-05-2018;110248;0;163;1;Spese correnti;3;Acquisto di beni e servizi;2;Acquisto di servizi;19;Servizi informatici e di telecomunicazioni;10;Servizi di consulenza e prestazioni professionali ICT;04-05-2018;
391;1;0;"30,50";"30,50";ARUBA S.P.A.;ZBA20C6102;SALDO Fatt.n. A17PAS0015185  del 27/12/2017 ATTIVAZIONE POSTA ELETTRONICA CERTIFICATA CONSIGLIERE D'ERCOLE SILVINO;04-05-2018;110248;0;7;1;Spese correnti;3;Acquisto di beni e servizi;2;Acquisto di servizi;19;Servizi informatici e di telecomunicazioni;1;Gestione e manutenzione applicazioni;04-05-2018;
392;1;0;"304,18";"304,18";MAGGIOLI S.P.A.;ZB521F01A4;SALDO Fatt.n. 0002105164  del 31/01/2018 COPERTINE PERMESSI DI COSTRUIRE E LIBRO;04-05-2018;110224;0;22;1;Spese correnti;3;Acquisto di beni e servizi;1;Acquisto di beni;2;Altri beni di consumo;1;"Carta, cancelleria e stampati";04-05-2018;
393;1;0;"109,80";"239,12";GASPARI E. S.R.L.;ZCF21DD5C3;SALDO Fatt.n. 01521  del 31/01/2018 ELEWEB POLITICHE 2018;04-05-2018;110454;0;51;1;Spese correnti;3;Acquisto di beni e servizi;1;Acquisto di beni;2;Altri beni di consumo;10;Beni per consultazioni elettorali;04-05-2018;
393;2;0;"129,32";"239,12";GASPARI E. S.R.L.;ZCF21DD5C3;SALDO Fatt.n. 00757  del 29/01/2018 ALLESTIMENTO SEGGI ELEZIONI POLITICHE 2018;04-05-2018;110454;0;51;1;Spese correnti;3;Acquisto di beni e servizi;1;Acquisto di beni;2;Altri beni di consumo;10;Beni per consultazioni elettorali;04-05-2018;
394;1;0;"600,00";"600,00";IT CREATIVE DI D'ANGELO FRANCESCO;Z6D1D90C9A;SALDO Fatt.n. 27/A  del 22/12/2017 ASSISTENZA POSTAZIONI INFORMATICHE E SITO ISTITUZIONALE DICEMBRE 2017;04-05-2018;110248;0;122;1;Spese correnti;3;Acquisto di beni e servizi;2;Acquisto di servizi;19;Servizi informatici e di telecomunicazioni;10;Servizi di consulenza e prestazioni professionali ICT;04-05-2018;
395;1;0;"600,00";"600,00";IT CREATIVE DI D'ANGELO FRANCESCO;Z6D1D90C9A;SALDO Fatt.n. 5/A  del 30/01/2018 ASSISTENZA POSTAZIONI INFORMATICHE E SITO ISTITUZIONALE GENNAIO 2018;04-05-2018;110248;0;122;1;Spese correnti;3;Acquisto di beni e servizi;2;Acquisto di servizi;19;Servizi informatici e di telecomunicazioni;10;Servizi di consulenza e prestazioni professionali ICT;04-05-2018;
396;1;0;"3.050,00";"3.050,00";INFOTEAM SRL;ZE1224A5F7;SALDO Fatt.n. 51/FE  del 19/02/2018 NOLEGGIO E ASSISTENZA HARDWARE 2018/2019;04-05-2018;110640;0;31;1;Spese correnti;3;Acquisto di beni e servizi;2;Acquisto di servizi;8;Leasing operativo;999;Leasing operativo di altri beni;04-05-2018;
397;1;0;"20.000,00";"20.000,00";BANCA POPOLARE DELL'EMILIA ROMAGNA; ;PROVVISORIO DI USCITA N.161;04-05-2018;190042;0;224;1;Spese correnti;7;Interessi passivi;6;Altri interessi passivi;4;Interessi passivi su anticipazioni di tesoreria degli istituti tesorieri/cassieri;1;Interessi passivi su anticipazioni di tesoreria degli istituti tesorieri/cassieri;04-05-2018;
398;1;0;"390,00";"390,00";BANCA POPOLARE DELL'EMILIA ROMAGNA; ;PROVVISORIO DI USCITA N.161;04-05-2018;190062;0;227;1;Spese correnti;7;Interessi passivi;6;Altri interessi passivi;2;Interessi di mora;999;Interessi di mora ad altri soggetti;04-05-2018;
401;1;0;"35.598,57";"35.598,57";TENAGLIA SRL;X61419A716;SALDO Fatt.n. 62/04  del 04/10/2016 OPERE PROTEZIONE DEL LITORALE LOCALITA' CAVALLUCCIO E VALLE DELLE GROTTE;04-05-2018;261236;0;45;2;Spese in conto capitale;2;Investimenti fissi lordi e acquisto di terreni;1;Beni materiali;9;Beni immobili;999;Beni immobili n.a.c.;04-05-2018;
402;1;0;"68,00";"68,00";TIRO A SEGNO NAZIONALE LANCIANO;Z80184C791;SALDO Fatt.n. 01PA/2016  del 10/02/2016 PRESTAZIONE PROVA DI TIRO OBBLIGATORIA  ESEGUITA DALLA POLIZIA MUNICIPALE DI ROCCA SAN GIOVANNI NELLE PERSONE DI:  GIARDINO CAMILLO E CARAVAGGIO GIANFRANCO - RIF. DETERMINAZIONE N.6/32 R.G. DEL 01.02.;09-05-2018;130132;0;72;1;Spese correnti;3;Acquisto di beni e servizi;2;Acquisto di servizi;13;Servizi ausiliari per il funzionamento dell'ente;999;Altri servizi ausiliari n.a.c.;09-05-2018;
403;1;0;"98,42";"98,42";A.C.I.;ZF5222DF84;SALDO Fatt.n. 0000000651  del 15/01/2018 VISURE;09-05-2018;130132;0;28;1;Spese correnti;3;Acquisto di beni e servizi;2;Acquisto di servizi;13;Servizi ausiliari per il funzionamento dell'ente;999;Altri servizi ausiliari n.a.c.;09-05-2018;
404;1;0;"364,41";"364,41";GRAFICA ISERNINA S.R.L.;ZF01EFC8AD;SALDO Fatt.n. 2017-SE402-0000615  del 30/06/2017 BUSTE VERDI INTESTATE;09-05-2018;130120;0;115;1;Spese correnti;3;Acquisto di beni e servizi;1;Acquisto di beni;2;Altri beni di consumo;1;"Carta, cancelleria e stampati";09-05-2018;
405;1;0;"183,40";"183,40";C.I.M.A.  SOC. COOP.  A.R.L.;Z721CA5CDF;SALDO Fatt.n. 82/PA  del 06/04/2018 SERVIZIO DI ASILO PER CANI NEi MESi DI GENNAIO-FEBBRAIO-MARZO 2018;09-05-2018;160532;0;25;1;Spese correnti;3;Acquisto di beni e servizi;2;Acquisto di servizi;15;Contratti di servizio pubblico;11;Contratti di servizio per la lotta al randagismo;09-05-2018;
406;1;0;"18.451,06";"36.902,12";RIECO SPA;3475364917;SALDO Fatt.n. 170528/01  del 31/07/2017 RACCOLTA TA.R.S.U. LUGLIO 2017;09-05-2018;160948;0;87;1;Spese correnti;3;Acquisto di beni e servizi;2;Acquisto di servizi;15;Contratti di servizio pubblico;5;Contratti di servizio per il conferimento in discarica dei rifiuti;09-05-2018;
406;2;0;"18.451,06";"36.902,12";RIECO SPA;3475364917;SALDO Fatt.n. 170633/01  del 31/08/2017 RACCOLTA TA.R.S.U. DI AGOSTO 2017;09-05-2018;160948;0;87;1;Spese correnti;3;Acquisto di beni e servizi;2;Acquisto di servizi;15;Contratti di servizio pubblico;5;Contratti di servizio per il conferimento in discarica dei rifiuti;09-05-2018;
407;1;0;"450,00";"450,00";AGRI 2000 S.R.L.;Z73210AE8C;SALDO Fatt.n. 8/PA  del 30/12/2017 ABETE;09-05-2018;170112;0;179;1;Spese correnti;3;Acquisto di beni e servizi;1;Acquisto di beni;2;Altri beni di consumo;999;Altri beni e materiali di consumo n.a.c.;09-05-2018;
408;1;0;"1.709,62";"3.419,24";RIECO SPA;3475364917;SALDO Fatt.n. 170688  del 31/08/2017 NOLEGGIO CASSOLI " ALL. D" DI AGOSTO 2017;09-05-2018;160944;0;92;1;Spese correnti;3;Acquisto di beni e servizi;2;Acquisto di servizi;15;Contratti di servizio pubblico;5;Contratti di servizio per il conferimento in discarica dei rifiuti;09-05-2018;
408;2;0;"1.709,62";"3.419,24";RIECO SPA;3475364917;SALDO Fatt.n. 170781  del 30/09/2017 NOLEGGIO CASSONI SETTEMBRE 2017 ALL. "D";09-05-2018;160944;0;92;1;Spese correnti;3;Acquisto di beni e servizi;2;Acquisto di servizi;15;Contratti di servizio pubblico;5;Contratti di servizio per il conferimento in discarica dei rifiuti;09-05-2018;
409;1;0;"100,00";"100,00";MEDIASS S.P.A.;Z6422A13EA;LIQUIDAZIONE POLIZZE UNIPOL-SAI PER AUTOVETTURA tg. YA942AD - SALDO;18-05-2018;130136;0;58;1;Spese correnti;10;Altre spese correnti;4;Premi di assicurazione;1;Premi di assicurazione contro i danni;3;Premi di assicurazione per responsabilit� civile verso terzi;18-05-2018;
442;1;0;"17,05";"20,03";AUTOSTRADE PER L'ITALIA;0;ACCONTO Fatt.n. 900010721D  del 30/05/2018 PEDAGGI AUTOSTRADA DAL 24/4 AL 3/5/2018;30-05-2018;130132;0;56;1;Spese correnti;3;Acquisto di beni e servizi;2;Acquisto di servizi;13;Servizi ausiliari per il funzionamento dell'ente;999;Altri servizi ausiliari n.a.c.;30-05-2018;
442;2;0;"0,91";"20,03";BANCA POPOLARE DELL'EMILIA ROMAGNA; ;PEDAGGI AUTOSTRADALI;30-05-2018;130132;0;56;1;Spese correnti;3;Acquisto di beni e servizi;2;Acquisto di servizi;13;Servizi ausiliari per il funzionamento dell'ente;999;Altri servizi ausiliari n.a.c.;30-05-2018;
442;3;0;"2,07";"20,03";TELEPASS S.P.A.;0;ACCONTO Fatt.n. 900010913T  del 30/05/2018;30-05-2018;130132;0;56;1;Spese correnti;3;Acquisto di beni e servizi;2;Acquisto di servizi;13;Servizi ausiliari per il funzionamento dell'ente;999;Altri servizi ausiliari n.a.c.;30-05-2018;
448;1;0;"3.600,00";"3.600,00";MEDIASS S.P.A.;ZCB23D34AF;POLIZZA ASSICURAZIONE RISCHI CIVILI;04-06-2018;110602;0;127;1;Spese correnti;10;Altre spese correnti;4;Premi di assicurazione;1;Premi di assicurazione contro i danni;3;Premi di assicurazione per responsabilit� civile verso terzi;04-06-2018;
449;1;0;"2.427,80";"2.427,80";CODEX S.R.L.;ZFA2140891;SALDO Fatt.n. 3/6  del 31/01/2018 PROTEZIONI DI SICUREZZA;04-06-2018;140142;0;173;1;Spese correnti;3;Acquisto di beni e servizi;2;Acquisto di servizi;5;Utenze e canoni;999;Utenze e canoni per altri servizi n.a.c.;04-06-2018;
451;1;0;"449,25";"1.606,70";OMESSO NOMINATIVO NEL RISPETTO DELLA NORMATIVA SULLA PROTEZIONE DATI PERSONALI; ;FORNITURA GRATUITA E SEMIGRATUITA DEI LIBRI DI TESTO PER L'ANNO SCOLASTICO 2014/2015 - APPROVAZIONE DELL'ELENCO DEI BENEFICIARI E DETERMINAZIONE DELLE MISURE D'INTERVENTO.;04-06-2018;140450;0;113;1;Spese correnti;4;Trasferimenti correnti;2;Trasferimenti correnti a Famiglie;5;Altri trasferimenti a famiglie;999;Altri trasferimenti a famiglie n.a.c.;04-06-2018;
451;2;0;"463,35";"1.606,70";OMESSO NOMINATIVO NEL RISPETTO DELLA NORMATIVA SULLA PROTEZIONE DATI PERSONALI; ;FORNITURA GRATUITA E SEMIGRATUITA DEI LIBRI DI TESTO PER L'ANNO SCOLASTICO 2014/2015 - APPROVAZIONE DELL'ELENCO DEI BENEFICIARI E DETERMINAZIONE DELLE MISURE D'INTERVENTO.;04-06-2018;140450;0;113;1;Spese correnti;4;Trasferimenti correnti;2;Trasferimenti correnti a Famiglie;5;Altri trasferimenti a famiglie;999;Altri trasferimenti a famiglie n.a.c.;04-06-2018;
451;3;0;"247,80";"1.606,70";OMESSO NOMINATIVO NEL RISPETTO DELLA NORMATIVA SULLA PROTEZIONE DATI PERSONALI; ;FORNITURA GRATUITA E SEMIGRATUITA DEI LIBRI DI TESTO PER L'ANNO SCOLASTICO 2014/2015 - APPROVAZIONE DELL'ELENCO DEI BENEFICIARI E DETERMINAZIONE DELLE MISURE D'INTERVENTO.;04-06-2018;140450;0;113;1;Spese correnti;4;Trasferimenti correnti;2;Trasferimenti correnti a Famiglie;5;Altri trasferimenti a famiglie;999;Altri trasferimenti a famiglie n.a.c.;04-06-2018;
451;4;0;"151,80";"1.606,70";OMESSO NOMINATIVO NEL RISPETTO DELLA NORMATIVA SULLA PROTEZIONE DATI PERSONALI; ;FORNITURA GRATUITA E SEMIGRATUITA DEI LIBRI DI TESTO PER L'ANNO SCOLASTICO 2014/2015 - APPROVAZIONE DELL'ELENCO DEI BENEFICIARI E DETERMINAZIONE DELLE MISURE D'INTERVENTO.;04-06-2018;140450;0;113;1;Spese correnti;4;Trasferimenti correnti;2;Trasferimenti correnti a Famiglie;5;Altri trasferimenti a famiglie;999;Altri trasferimenti a famiglie n.a.c.;04-06-2018;
451;5;0;"294,50";"1.606,70";OMESSO NOMINATIVO NEL RISPETTO DELLA NORMATIVA SULLA PROTEZIONE DATI PERSONALI; ;FORNITURA GRATUITA E SEMIGRATUITA DEI LIBRI DI TESTO PER L'ANNO SCOLASTICO 2014/2015 - APPROVAZIONE DELL'ELENCO DEI BENEFICIARI E DETERMINAZIONE DELLE MISURE D'INTERVENTO.;04-06-2018;140450;0;113;1;Spese correnti;4;Trasferimenti correnti;2;Trasferimenti correnti a Famiglie;5;Altri trasferimenti a famiglie;999;Altri trasferimenti a famiglie n.a.c.;04-06-2018;
452;1;0;"152,40";"4.038,47";OMESSO NOMINATIVO NEL RISPETTO DELLA NORMATIVA SULLA PROTEZIONE DATI PERSONALI; ;FORNITURA GRATUITA E SEMIGRATUITA DEI LIBRI DI TESTO PER L'ANNO SCOLASTICO 2016/2017 - APPROVAZIONE DELL'ELENCO DEI BENEFICIARI E DETERMINAZIONE DELLE MISURE D'INTERVENTO.;04-06-2018;140450;0;80;1;Spese correnti;4;Trasferimenti correnti;2;Trasferimenti correnti a Famiglie;5;Altri trasferimenti a famiglie;999;Altri trasferimenti a famiglie n.a.c.;04-06-2018;
452;2;0;"170,92";"4.038,47";OMESSO NOMINATIVO NEL RISPETTO DELLA NORMATIVA SULLA PROTEZIONE DATI PERSONALI; ;FORNITURA GRATUITA E SEMIGRATUITA DEI LIBRI DI TESTO PER L'ANNO SCOLASTICO 2016/2017 - APPROVAZIONE DELL'ELENCO DEI BENEFICIARI E DETERMINAZIONE DELLE MISURE D'INTERVENTO.;04-06-2018;140450;0;80;1;Spese correnti;4;Trasferimenti correnti;2;Trasferimenti correnti a Famiglie;5;Altri trasferimenti a famiglie;999;Altri trasferimenti a famiglie n.a.c.;04-06-2018;
452;3;0;"248,50";"4.038,47";OMESSO NOMINATIVO NEL RISPETTO DELLA NORMATIVA SULLA PROTEZIONE DATI PERSONALI; ;FORNITURA GRATUITA E SEMIGRATUITA DEI LIBRI DI TESTO PER L'ANNO SCOLASTICO 2016/2017 - APPROVAZIONE DELL'ELENCO DEI BENEFICIARI E DETERMINAZIONE DELLE MISURE D'INTERVENTO.;04-06-2018;140450;0;80;1;Spese correnti;4;Trasferimenti correnti;2;Trasferimenti correnti a Famiglie;5;Altri trasferimenti a famiglie;999;Altri trasferimenti a famiglie n.a.c.;04-06-2018;
452;4;0;"401,20";"4.038,47";OMESSO NOMINATIVO NEL RISPETTO DELLA NORMATIVA SULLA PROTEZIONE DATI PERSONALI; ;FORNITURA GRATUITA E SEMIGRATUITA DEI LIBRI DI TESTO PER L'ANNO SCOLASTICO 2016/2017 - APPROVAZIONE DELL'ELENCO DEI BENEFICIARI E DETERMINAZIONE DELLE MISURE D'INTERVENTO.;04-06-2018;140450;0;80;1;Spese correnti;4;Trasferimenti correnti;2;Trasferimenti correnti a Famiglie;5;Altri trasferimenti a famiglie;999;Altri trasferimenti a famiglie n.a.c.;04-06-2018;
452;5;0;"242,20";"4.038,47";OMESSO NOMINATIVO NEL RISPETTO DELLA NORMATIVA SULLA PROTEZIONE DATI PERSONALI; ;FORNITURA GRATUITA E SEMIGRATUITA DEI LIBRI DI TESTO PER L'ANNO SCOLASTICO 2016/2017 - APPROVAZIONE DELL'ELENCO DEI BENEFICIARI E DETERMINAZIONE DELLE MISURE D'INTERVENTO.;04-06-2018;140450;0;80;1;Spese correnti;4;Trasferimenti correnti;2;Trasferimenti correnti a Famiglie;5;Altri trasferimenti a famiglie;999;Altri trasferimenti a famiglie n.a.c.;04-06-2018;
452;6;0;"308,55";"4.038,47";OMESSO NOMINATIVO NEL RISPETTO DELLA NORMATIVA SULLA PROTEZIONE DATI PERSONALI; ;FORNITURA GRATUITA E SEMIGRATUITA DEI LIBRI DI TESTO PER L'ANNO SCOLASTICO 2016/2017 - APPROVAZIONE DELL'ELENCO DEI BENEFICIARI E DETERMINAZIONE DELLE MISURE D'INTERVENTO.;04-06-2018;140450;0;80;1;Spese correnti;4;Trasferimenti correnti;2;Trasferimenti correnti a Famiglie;5;Altri trasferimenti a famiglie;999;Altri trasferimenti a famiglie n.a.c.;04-06-2018;
452;7;0;"276,10";"4.038,47";OMESSO NOMINATIVO NEL RISPETTO DELLA NORMATIVA SULLA PROTEZIONE DATI PERSONALI; ;FORNITURA GRATUITA E SEMIGRATUITA DEI LIBRI DI TESTO PER L'ANNO SCOLASTICO 2016/2017 - APPROVAZIONE DELL'ELENCO DEI BENEFICIARI E DETERMINAZIONE DELLE MISURE D'INTERVENTO.;04-06-2018;140450;0;80;1;Spese correnti;4;Trasferimenti correnti;2;Trasferimenti correnti a Famiglie;5;Altri trasferimenti a famiglie;999;Altri trasferimenti a famiglie n.a.c.;04-06-2018;
452;8;0;"257,30";"4.038,47";OMESSO NOMINATIVO NEL RISPETTO DELLA NORMATIVA SULLA PROTEZIONE DATI PERSONALI; ;FORNITURA GRATUITA E SEMIGRATUITA DEI LIBRI DI TESTO PER L'ANNO SCOLASTICO 2016/2017 - APPROVAZIONE DELL'ELENCO DEI BENEFICIARI E DETERMINAZIONE DELLE MISURE D'INTERVENTO.;04-06-2018;140450;0;80;1;Spese correnti;4;Trasferimenti correnti;2;Trasferimenti correnti a Famiglie;5;Altri trasferimenti a famiglie;999;Altri trasferimenti a famiglie n.a.c.;04-06-2018;
452;9;0;"73,80";"4.038,47";OMESSO NOMINATIVO NEL RISPETTO DELLA NORMATIVA SULLA PROTEZIONE DATI PERSONALI; ;FORNITURA GRATUITA E SEMIGRATUITA DEI LIBRI DI TESTO PER L'ANNO SCOLASTICO 2016/2017 - APPROVAZIONE DELL'ELENCO DEI BENEFICIARI E DETERMINAZIONE DELLE MISURE D'INTERVENTO.;04-06-2018;140450;0;80;1;Spese correnti;4;Trasferimenti correnti;2;Trasferimenti correnti a Famiglie;5;Altri trasferimenti a famiglie;999;Altri trasferimenti a famiglie n.a.c.;04-06-2018;
452;10;0;"782,95";"4.038,47";OMESSO NOMINATIVO NEL RISPETTO DELLA NORMATIVA SULLA PROTEZIONE DATI PERSONALI; ;FORNITURA GRATUITA E SEMIGRATUITA DEI LIBRI DI TESTO PER L'ANNO SCOLASTICO 2016/2017 - APPROVAZIONE DELL'ELENCO DEI BENEFICIARI E DETERMINAZIONE DELLE MISURE D'INTERVENTO.;04-06-2018;140450;0;80;1;Spese correnti;4;Trasferimenti correnti;2;Trasferimenti correnti a Famiglie;5;Altri trasferimenti a famiglie;999;Altri trasferimenti a famiglie n.a.c.;04-06-2018;
452;11;0;"477,35";"4.038,47";OMESSO NOMINATIVO NEL RISPETTO DELLA NORMATIVA SULLA PROTEZIONE DATI PERSONALI; ;FORNITURA GRATUITA E SEMIGRATUITA DEI LIBRI DI TESTO PER L'ANNO SCOLASTICO 2016/2017 - APPROVAZIONE DELL'ELENCO DEI BENEFICIARI E DETERMINAZIONE DELLE MISURE D'INTERVENTO.;04-06-2018;140450;0;80;1;Spese correnti;4;Trasferimenti correnti;2;Trasferimenti correnti a Famiglie;5;Altri trasferimenti a famiglie;999;Altri trasferimenti a famiglie n.a.c.;04-06-2018;
452;12;0;"232,65";"4.038,47";OMESSO NOMINATIVO NEL RISPETTO DELLA NORMATIVA SULLA PROTEZIONE DATI PERSONALI; ;FORNITURA GRATUITA E SEMIGRATUITA DEI LIBRI DI TESTO PER L'ANNO SCOLASTICO 2016/2017 - APPROVAZIONE DELL'ELENCO DEI BENEFICIARI E DETERMINAZIONE DELLE MISURE D'INTERVENTO.;04-06-2018;140450;0;80;1;Spese correnti;4;Trasferimenti correnti;2;Trasferimenti correnti a Famiglie;5;Altri trasferimenti a famiglie;999;Altri trasferimenti a famiglie n.a.c.;04-06-2018;
452;13;0;"258,30";"4.038,47";OMESSO NOMINATIVO NEL RISPETTO DELLA NORMATIVA SULLA PROTEZIONE DATI PERSONALI; ;FORNITURA GRATUITA E SEMIGRATUITA DEI LIBRI DI TESTO PER L'ANNO SCOLASTICO 2016/2017 - APPROVAZIONE DELL'ELENCO DEI BENEFICIARI E DETERMINAZIONE DELLE MISURE D'INTERVENTO.;04-06-2018;140450;0;80;1;Spese correnti;4;Trasferimenti correnti;2;Trasferimenti correnti a Famiglie;5;Altri trasferimenti a famiglie;999;Altri trasferimenti a famiglie n.a.c.;04-06-2018;
452;14;0;"156,25";"4.038,47";OMESSO NOMINATIVO NEL RISPETTO DELLA NORMATIVA SULLA PROTEZIONE DATI PERSONALI; ;FORNITURA GRATUITA E SEMIGRATUITA DEI LIBRI DI TESTO PER L'ANNO SCOLASTICO 2016/2017 - APPROVAZIONE DELL'ELENCO DEI BENEFICIARI E DETERMINAZIONE DELLE MISURE D'INTERVENTO.;04-06-2018;140450;0;80;1;Spese correnti;4;Trasferimenti correnti;2;Trasferimenti correnti a Famiglie;5;Altri trasferimenti a famiglie;999;Altri trasferimenti a famiglie n.a.c.;04-06-2018;
479;1;0;"3.980,86";"3.980,86";STUDIO BONA;Z211E55EE0;SALDO Fatt.n. 2  del 05/03/2018 CONSULENZA UFFICIO TECNICO GEN.-MAR.2018;12-06-2018;110336;0;82;1;Spese correnti;3;Acquisto di beni e servizi;2;Acquisto di servizi;10;Consulenze;1;"Incarichi libero professionali di studi, ricerca e consulenza";12-06-2018;
480;1;0;"125,90";"125,90";GASPARI E. S.R.L.;Z3E226B6A0;SALDO Fatt.n. 03683  del 28/02/2018 SERIE ETIVHETTE PRT VERBALI ELETTORALI;12-06-2018;110454;0;65;1;Spese correnti;3;Acquisto di beni e servizi;1;Acquisto di beni;2;Altri beni di consumo;10;Beni per consultazioni elettorali;12-06-2018;
526;1;0;"432,93";"432,93";TELECOM ITALIA S.P.A.; ;SALDO Fatt.n. 8P00300298  del 06/12/2017 NOLEGGIO SISTEMA OFFICE SERVICE 7030 1BIM 2018;20-06-2018;140340;0;111;1;Spese correnti;3;Acquisto di beni e servizi;2;Acquisto di servizi;5;Utenze e canoni;1;Telefonia fissa;20-06-2018;
527;1;0;"3,81";"538,11";TELECOM ITALIA S.P.A.; ;SALDO Fatt.n. 8P00026169  del 06/02/2018 utenza 0872/607743;20-06-2018;140340;0;123;1;Spese correnti;3;Acquisto di beni e servizi;2;Acquisto di servizi;5;Utenze e canoni;1;Telefonia fissa;20-06-2018;
527;2;0;"4,23";"538,11";TELECOM ITALIA S.P.A.; ;SALDO Fatt.n. 8P00027791  del 06/02/2018 INTERESSI LEGALI E MORATORI;20-06-2018;140340;0;123;1;Spese correnti;3;Acquisto di beni e servizi;2;Acquisto di servizi;5;Utenze e canoni;1;Telefonia fissa;20-06-2018;
527;3;0;"19,58";"538,11";TELECOM ITALIA S.P.A.; ;SALDO Fatt.n. 8P00025922  del 06/02/2018 2BIM 2018;20-06-2018;140340;0;123;1;Spese correnti;3;Acquisto di beni e servizi;2;Acquisto di servizi;5;Utenze e canoni;1;Telefonia fissa;20-06-2018;
527;4;0;"21,56";"538,11";TELECOM ITALIA S.P.A.; ;SALDO Fatt.n. 8P00028016  del 06/02/2018 utenza 087260226;20-06-2018;140340;0;123;1;Spese correnti;3;Acquisto di beni e servizi;2;Acquisto di servizi;5;Utenze e canoni;1;Telefonia fissa;20-06-2018;
527;5;0;"88,40";"538,11";TELECOM ITALIA S.P.A.; ;SALDO Fatt.n. 8P00301745  del 06/12/2017 1BIM 2018- 087260226;20-06-2018;140340;0;123;1;Spese correnti;3;Acquisto di beni e servizi;2;Acquisto di servizi;5;Utenze e canoni;1;Telefonia fissa;20-06-2018;
527;6;0;"90,01";"538,11";TELECOM ITALIA S.P.A.; ;SALDO Fatt.n. 8P00300933  del 06/12/2017 1BIM 2018 - 0872607759;20-06-2018;140340;0;123;1;Spese correnti;3;Acquisto di beni e servizi;2;Acquisto di servizi;5;Utenze e canoni;1;Telefonia fissa;20-06-2018;
527;7;0;"119,94";"538,11";TELECOM ITALIA S.P.A.; ;SALDO Fatt.n. 8P00302213  del 06/12/2017 1BIM 2018 - 0872607743;20-06-2018;140340;0;123;1;Spese correnti;3;Acquisto di beni e servizi;2;Acquisto di servizi;5;Utenze e canoni;1;Telefonia fissa;20-06-2018;
527;8;0;"190,58";"538,11";TELECOM ITALIA S.P.A.; ;SALDO Fatt.n. 8P00300267  del 06/12/2017 1BIM 2018 - 087213346525;20-06-2018;140340;0;123;1;Spese correnti;3;Acquisto di beni e servizi;2;Acquisto di servizi;5;Utenze e canoni;1;Telefonia fissa;20-06-2018;
528;1;0;"3,71";"71,79";TELECOM ITALIA S.P.A.; ;SALDO Fatt.n. 8P00027735  del 06/02/2018 INDENNITA' RITARDATO PAGAMENTO;20-06-2018;160134;0;41;1;Spese correnti;3;Acquisto di beni e servizi;2;Acquisto di servizi;5;Utenze e canoni;1;Telefonia fissa;20-06-2018;
528;2;0;"68,08";"71,79";TELECOM ITALIA S.P.A.; ;SALDO Fatt.n. 8P00300165  del 06/12/2017 1BIM 2018 -0872609151;20-06-2018;160134;0;41;1;Spese correnti;3;Acquisto di beni e servizi;2;Acquisto di servizi;5;Utenze e canoni;1;Telefonia fissa;20-06-2018;
529;1;0;"0,22";"2.422,12";TELECOM ITALIA S.P.A.; ;SALDO Fatt.n. 8A00086024  del 06/02/2018 UTENZA 016113593833;20-06-2018;110836;0;110;1;Spese correnti;3;Acquisto di beni e servizi;2;Acquisto di servizi;5;Utenze e canoni;1;Telefonia fissa;20-06-2018;
529;2;0;"5,05";"2.422,12";TELECOM ITALIA S.P.A.; ;SALDO Fatt.n. 8P00026736  del 06/02/2018 UTENZA 0872/13346975;20-06-2018;110836;0;110;1;Spese correnti;3;Acquisto di beni e servizi;2;Acquisto di servizi;5;Utenze e canoni;1;Telefonia fissa;20-06-2018;
529;3;0;"5,08";"2.422,12";TELECOM ITALIA S.P.A.; ;SALDO Fatt.n. 8A01074678  del 06/12/2017 UTENZA 016113593833;20-06-2018;110836;0;110;1;Spese correnti;3;Acquisto di beni e servizi;2;Acquisto di servizi;5;Utenze e canoni;1;Telefonia fissa;20-06-2018;
529;4;0;"5,50";"2.422,12";TELECOM ITALIA S.P.A.; ;SALDO Fatt.n. 8P00300744  del 06/12/2017 UTENZA 0872/13346975;20-06-2018;110836;0;110;1;Spese correnti;3;Acquisto di beni e servizi;2;Acquisto di servizi;5;Utenze e canoni;1;Telefonia fissa;20-06-2018;
529;5;0;"68,08";"2.422,12";TELECOM ITALIA S.P.A.; ;SALDO Fatt.n. 8P00300021  del 06/12/2017 UTENZA 0872/60121;20-06-2018;110836;0;110;1;Spese correnti;3;Acquisto di beni e servizi;2;Acquisto di servizi;5;Utenze e canoni;1;Telefonia fissa;20-06-2018;
529;6;0;"71,72";"2.422,12";TELECOM ITALIA S.P.A.; ;SALDO Fatt.n. 8P00027553  del 06/02/2018 utenza 0872/60630;20-06-2018;110836;0;110;1;Spese correnti;3;Acquisto di beni e servizi;2;Acquisto di servizi;5;Utenze e canoni;1;Telefonia fissa;20-06-2018;
529;7;0;"124,83";"2.422,12";TELECOM ITALIA S.P.A.;XE2139C8F3;SALDO Fatt.n. 7X00262918  del 14/02/2018 TELEFONATE E SERVIZI 2 BIM.2018;20-06-2018;110836;0;110;1;Spese correnti;3;Acquisto di beni e servizi;2;Acquisto di servizi;5;Utenze e canoni;1;Telefonia fissa;20-06-2018;
529;8;0;"126,09";"2.422,12";TELECOM ITALIA S.P.A.; ;SALDO Fatt.n. 8P00302374  del 06/12/2017 UTENZA 0872/607033;20-06-2018;110836;0;110;1;Spese correnti;3;Acquisto di beni e servizi;2;Acquisto di servizi;5;Utenze e canoni;1;Telefonia fissa;20-06-2018;
529;9;0;"146,40";"2.422,12";TELECOM ITALIA S.P.A.; ;SALDO Fatt.n. 8P00028252  del 06/02/2018 UTENZA 0872/607033;20-06-2018;110836;0;110;1;Spese correnti;3;Acquisto di beni e servizi;2;Acquisto di servizi;5;Utenze e canoni;1;Telefonia fissa;20-06-2018;
529;10;0;"251,34";"2.422,12";TELECOM ITALIA S.P.A.; ;SALDO Fatt.n. 8P00302271  del 06/12/2017 utenza 0872/60630;20-06-2018;110836;0;110;1;Spese correnti;3;Acquisto di beni e servizi;2;Acquisto di servizi;5;Utenze e canoni;1;Telefonia fissa;20-06-2018;
529;11;0;"595,18";"2.422,12";TELECOM ITALIA S.P.A.; ;SALDO Fatt.n. 8P00301826  del 06/12/2017 UTENZA 0872/13346966;20-06-2018;110836;0;110;1;Spese correnti;3;Acquisto di beni e servizi;2;Acquisto di servizi;5;Utenze e canoni;1;Telefonia fissa;20-06-2018;
529;12;0;"1.022,63";"2.422,12";TELECOM ITALIA S.P.A.; ;ACCONTO Fatt.n. XP00000684  del 05/10/2017 6BIM 2017;20-06-2018;110836;0;110;1;Spese correnti;3;Acquisto di beni e servizi;2;Acquisto di servizi;5;Utenze e canoni;1;Telefonia fissa;20-06-2018;
530;1;0;"0,63";"686,00";TELECOM ITALIA S.P.A.; ;SALDO Fatt.n. 8P00146175  del 07/06/2017 UTENZE TELEFONICHE 4BIM 2017;20-06-2018;110836;0;109;1;Spese correnti;3;Acquisto di beni e servizi;2;Acquisto di servizi;5;Utenze e canoni;1;Telefonia fissa;20-06-2018;
530;2;0;"119,98";"686,00";TELECOM ITALIA S.P.A.;XE2139C8F3;SALDO Fatt.n. 7X05080172  del 15/12/2017 CONTRATTO 888010664161 SOLUZIONE MOBILE TIM -;20-06-2018;110836;0;109;1;Spese correnti;3;Acquisto di beni e servizi;2;Acquisto di servizi;5;Utenze e canoni;1;Telefonia fissa;20-06-2018;
530;3;0;"565,39";"686,00";TELECOM ITALIA S.P.A.; ;ACCONTO Fatt.n. 8P00302244  del 06/12/2017 1BIM 2018;20-06-2018;110836;0;109;1;Spese correnti;3;Acquisto di beni e servizi;2;Acquisto di servizi;5;Utenze e canoni;1;Telefonia fissa;20-06-2018;
531;1;0;"-84,29";"1.896,88";TELECOM ITALIA S.P.A.; ;SALDO Fatt.n. 8P00027989  del 06/02/2018 UTENZA 0872/13346966;20-06-2018;110836;0;109;1;Spese correnti;3;Acquisto di beni e servizi;2;Acquisto di servizi;5;Utenze e canoni;1;Telefonia fissa;20-06-2018;
531;2;0;"396,87";"1.896,88";TELECOM ITALIA S.P.A.; ;SALDO Fatt.n. 8P00302244  del 06/12/2017 1BIM 2018;20-06-2018;110836;0;109;1;Spese correnti;3;Acquisto di beni e servizi;2;Acquisto di servizi;5;Utenze e canoni;1;Telefonia fissa;20-06-2018;
531;3;0;"1.584,30";"1.896,88";TELECOM ITALIA S.P.A.; ;SALDO Fatt.n. XP00000684  del 05/10/2017 6BIM 2017;20-06-2018;110836;0;109;1;Spese correnti;3;Acquisto di beni e servizi;2;Acquisto di servizi;5;Utenze e canoni;1;Telefonia fissa;20-06-2018;
532;1;0;"451,60";"451,60";CLIMATERM SRL;Z842085CA6;ACCONTO Fatt.n. 10  del 30/11/2017;20-06-2018;140140;0;51;1;Spese correnti;3;Acquisto di beni e servizi;1;Acquisto di beni;2;Altri beni di consumo;999;Altri beni e materiali di consumo n.a.c.;20-06-2018;
533;1;0;"500,00";"500,00";CLIMATERM SRL;Z842085CA6;SALDO Fatt.n. 10  del 30/11/2017;20-06-2018;140210;0;52;1;Spese correnti;3;Acquisto di beni e servizi;1;Acquisto di beni;2;Altri beni di consumo;999;Altri beni e materiali di consumo n.a.c.;20-06-2018;
534;1;0;"4.076,12";"12.748,62";LABOR  SOC. COOP. A R.L.;Z19219F484;SALDO Fatt.n. 42/PA  del 28/02/2018 SERVIZIO REFEZIONE SCOLASTICA_FEBBRAIO 2018_;20-06-2018;140444;0;1;1;Spese correnti;3;Acquisto di beni e servizi;2;Acquisto di servizi;15;Contratti di servizio pubblico;6;Contratti di servizio per le mense scolastiche;20-06-2018;
534;2;0;"4.302,32";"12.748,62";LABOR  SOC. COOP. A R.L.;Z19219F484;SALDO Fatt.n. 62/PA  del 28/03/2018 SERVIZIO REFEZIONE SCOLASTICA_MARZO 2018_;20-06-2018;140444;0;1;1;Spese correnti;3;Acquisto di beni e servizi;2;Acquisto di servizi;15;Contratti di servizio pubblico;6;Contratti di servizio per le mense scolastiche;20-06-2018;
534;3;0;"4.370,18";"12.748,62";LABOR  SOC. COOP. A R.L.;Z19219F484;SALDO Fatt.n. 20/PA  del 31/01/2018 SERVIZIO REFEZIONE SCOLASTICA_GENNAIO 2018_;20-06-2018;140444;0;1;1;Spese correnti;3;Acquisto di beni e servizi;2;Acquisto di servizi;15;Contratti di servizio pubblico;6;Contratti di servizio per le mense scolastiche;20-06-2018;
535;1;0;"9.801,00";"19.602,00";IEZZI TRAVEL SRL;6770169831;SALDO Fatt.n. FATTPA 11_18  del 28/02/2018 TRASPORTO SCOLASTICO DI FEBBRAIO 2018;20-06-2018;140448;0;223;1;Spese correnti;3;Acquisto di beni e servizi;2;Acquisto di servizi;15;Contratti di servizio pubblico;2;Contratti di servizio di trasporto scolastico;20-06-2018;
535;2;0;"9.801,00";"19.602,00";IEZZI TRAVEL SRL;6770169831;SALDO Fatt.n. FATTPA 18_18  del 31/03/2018 TRASPORTO SCOLASTICO DI MARZO 2018;20-06-2018;140448;0;223;1;Spese correnti;3;Acquisto di beni e servizi;2;Acquisto di servizi;15;Contratti di servizio pubblico;2;Contratti di servizio di trasporto scolastico;20-06-2018;
536;1;0;"-378,38";"11.530,90";CONSORZIO COMPRENSORIALE SMALTIMENTO.ECO.LAN. S.P.A.; ;SALDO Fatt.n. 100052  del 30/11/2017 NOTA DI CREDITO RECUPERO RIFIUTI PROVENIENZA URBANA;20-06-2018;160918;0;168;1;Spese correnti;3;Acquisto di beni e servizi;2;Acquisto di servizi;15;Contratti di servizio pubblico;4;Contratti di servizio per la raccolta rifiuti;20-06-2018;
536;2;0;"5.361,07";"11.530,90";CONSORZIO COMPRENSORIALE SMALTIMENTO.ECO.LAN. S.P.A.; ;SALDO Fatt.n. 101092  del 30/11/2017 RECUPERO RIFIUTI SOLIDI URBNI DI NOVEMBRE 2017;20-06-2018;160918;0;168;1;Spese correnti;3;Acquisto di beni e servizi;2;Acquisto di servizi;15;Contratti di servizio pubblico;4;Contratti di servizio per la raccolta rifiuti;20-06-2018;
536;3;0;"6.548,21";"11.530,90";CONSORZIO COMPRENSORIALE SMALTIMENTO.ECO.LAN. S.P.A.; ;SALDO Fatt.n. 101189  del 31/12/2017 RECUPERO RIFIUTI DI PROVENIENZA URBANA DI DICEMBRE 2017;20-06-2018;160918;0;168;1;Spese correnti;3;Acquisto di beni e servizi;2;Acquisto di servizi;15;Contratti di servizio pubblico;4;Contratti di servizio per la raccolta rifiuti;20-06-2018;
537;1;0;"392,82";"2.584,38";METAMER S.R.L.; ;SALDO Fatt.n. 0001BF20180000001022  del 14/05/2018 GAS METANO SCUOLA ELEMENTARE E MEDIA APRILE 2018;20-06-2018;140242;0;44;1;Spese correnti;3;Acquisto di beni e servizi;2;Acquisto di servizi;5;Utenze e canoni;6;Gas;20-06-2018;
537;2;0;"2.191,56";"2.584,38";METAMER S.R.L.; ;SALDO Fatt.n. 0001BF20180000000700  del 16/04/2018 METANO SCUOLA ELEMENTARE FEBBRAIO MARZO 2018;20-06-2018;140242;0;44;1;Spese correnti;3;Acquisto di beni e servizi;2;Acquisto di servizi;5;Utenze e canoni;6;Gas;20-06-2018;
538;1;0;"523,96";"523,96";METAMER S.R.L.;X37139C8F1;SALDO Fatt.n. 0001BF20180000000872  del 14/05/2018 GAS METANO;20-06-2018;161646;0;104;1;Spese correnti;3;Acquisto di beni e servizi;2;Acquisto di servizi;5;Utenze e canoni;4;Energia elettrica;20-06-2018;
539;1;0;"1.256,11";"1.256,11";METAMER S.R.L.;X37139C8F1;SALDO Fatt.n. 0001BF20180000000871  del 14/05/2018 GAS METANO MUNICIPIO MARZO-APRILE 2018;20-06-2018;110832;0;43;1;Spese correnti;3;Acquisto di beni e servizi;2;Acquisto di servizi;5;Utenze e canoni;6;Gas;20-06-2018;
540;1;0;"7,99";"3.466,13";E.N.E.L. ENERGIA S.P.A.;X37139C8F1;SALDO Fatt.n. 004801769261  del 06/12/2017 ENERGIA ELETTRICA - P.I.;20-06-2018;170236;0;105;1;Spese correnti;3;Acquisto di beni e servizi;2;Acquisto di servizi;5;Utenze e canoni;4;Energia elettrica;20-06-2018;
540;2;0;"8,39";"3.466,13";E.N.E.L. ENERGIA S.P.A.;X37139C8F1;SALDO Fatt.n. 004801776599  del 06/12/2017 ENERGIA ELETTRICA - P.I.;20-06-2018;170236;0;105;1;Spese correnti;3;Acquisto di beni e servizi;2;Acquisto di servizi;5;Utenze e canoni;4;Energia elettrica;20-06-2018;
540;3;0;"11,91";"3.466,13";E.N.E.L. ENERGIA S.P.A.;X37139C8F1;SALDO Fatt.n. 004801769265  del 06/12/2017 ENERGIA ELETTRICA - I.P.;20-06-2018;170236;0;105;1;Spese correnti;3;Acquisto di beni e servizi;2;Acquisto di servizi;5;Utenze e canoni;4;Energia elettrica;20-06-2018;
540;4;0;"16,20";"3.466,13";E.N.E.L. ENERGIA S.P.A.;X37139C8F1;SALDO Fatt.n. 004801776598  del 06/12/2017 ENERGIA ELETTRICA - I.P.;20-06-2018;170236;0;105;1;Spese correnti;3;Acquisto di beni e servizi;2;Acquisto di servizi;5;Utenze e canoni;4;Energia elettrica;20-06-2018;
540;5;0;"19,59";"3.466,13";E.N.E.L. ENERGIA S.P.A.;X37139C8F1;SALDO Fatt.n. 004801769629  del 06/12/2017 ENERGIA ELETTRICA - P.I.;20-06-2018;170236;0;105;1;Spese correnti;3;Acquisto di beni e servizi;2;Acquisto di servizi;5;Utenze e canoni;4;Energia elettrica;20-06-2018;
540;6;0;"28,71";"3.466,13";E.N.E.L. ENERGIA S.P.A.;X37139C8F1;SALDO Fatt.n. 004801769620  del 06/12/2017 ENERGIA ELETTRICA - I.P.;20-06-2018;170236;0;105;1;Spese correnti;3;Acquisto di beni e servizi;2;Acquisto di servizi;5;Utenze e canoni;4;Energia elettrica;20-06-2018;
540;7;0;"39,03";"3.466,13";E.N.E.L. ENERGIA S.P.A.;X37139C8F1;SALDO Fatt.n. 004801769257  del 06/12/2017 ENERGIA ELETTRICA - P.I.;20-06-2018;170236;0;105;1;Spese correnti;3;Acquisto di beni e servizi;2;Acquisto di servizi;5;Utenze e canoni;4;Energia elettrica;20-06-2018;
540;8;0;"40,58";"3.466,13";E.N.E.L. ENERGIA S.P.A.;X37139C8F1;SALDO Fatt.n. 004801769256  del 06/12/2017 ENERGIA ELETTRICA - I.P.;20-06-2018;170236;0;105;1;Spese correnti;3;Acquisto di beni e servizi;2;Acquisto di servizi;5;Utenze e canoni;4;Energia elettrica;20-06-2018;
540;9;0;"64,04";"3.466,13";E.N.E.L. ENERGIA S.P.A.;X37139C8F1;SALDO Fatt.n. 004801769268  del 06/12/2017 ENERGIA ELETTRICA - I.P.;20-06-2018;170236;0;105;1;Spese correnti;3;Acquisto di beni e servizi;2;Acquisto di servizi;5;Utenze e canoni;4;Energia elettrica;20-06-2018;
540;10;0;"90,00";"3.466,13";E.N.E.L. ENERGIA S.P.A.;X37139C8F1;SALDO Fatt.n. 004801769634  del 06/12/2017 ENERGIA ELETTRICA - P.I.;20-06-2018;170236;0;105;1;Spese correnti;3;Acquisto di beni e servizi;2;Acquisto di servizi;5;Utenze e canoni;4;Energia elettrica;20-06-2018;
540;11;0;"92,99";"3.466,13";E.N.E.L. ENERGIA S.P.A.;X37139C8F1;SALDO Fatt.n. 004801769616  del 06/12/2017 ENERGIA ELETTRICA - P.I.;20-06-2018;170236;0;105;1;Spese correnti;3;Acquisto di beni e servizi;2;Acquisto di servizi;5;Utenze e canoni;4;Energia elettrica;20-06-2018;
540;12;0;"98,11";"3.466,13";E.N.E.L. ENERGIA S.P.A.;X37139C8F1;SALDO Fatt.n. 004801769622  del 06/12/2017 ENERGIA ELETTRICA - P.I.;20-06-2018;170236;0;105;1;Spese correnti;3;Acquisto di beni e servizi;2;Acquisto di servizi;5;Utenze e canoni;4;Energia elettrica;20-06-2018;
540;13;0;"119,93";"3.466,13";E.N.E.L. ENERGIA S.P.A.;X37139C8F1;SALDO Fatt.n. 004801769264  del 06/12/2017 ENERGIA ELETTRICA - P.I.;20-06-2018;170236;0;105;1;Spese correnti;3;Acquisto di beni e servizi;2;Acquisto di servizi;5;Utenze e canoni;4;Energia elettrica;20-06-2018;
540;14;0;"135,24";"3.466,13";E.N.E.L. ENERGIA S.P.A.;X37139C8F1;SALDO Fatt.n. 004801769633  del 06/12/2017 ENERGIA ELETTRICA - I.P.;20-06-2018;170236;0;105;1;Spese correnti;3;Acquisto di beni e servizi;2;Acquisto di servizi;5;Utenze e canoni;4;Energia elettrica;20-06-2018;
540;15;0;"154,45";"3.466,13";E.N.E.L. ENERGIA S.P.A.;X37139C8F1;SALDO Fatt.n. 004801769627  del 06/12/2017 ENERGIA ELETTRICA - P.I.;20-06-2018;170236;0;105;1;Spese correnti;3;Acquisto di beni e servizi;2;Acquisto di servizi;5;Utenze e canoni;4;Energia elettrica;20-06-2018;
540;16;0;"242,24";"3.466,13";E.N.E.L. ENERGIA S.P.A.;X37139C8F1;SALDO Fatt.n. 004801769635  del 06/12/2017 ENERGIA ELETTRICA - I.P.;20-06-2018;170236;0;105;1;Spese correnti;3;Acquisto di beni e servizi;2;Acquisto di servizi;5;Utenze e canoni;4;Energia elettrica;20-06-2018;
540;17;0;"272,80";"3.466,13";E.N.E.L. ENERGIA S.P.A.;X37139C8F1;SALDO Fatt.n. 004801769630  del 06/12/2017 ENERGIA ELETTRICA - P.I.;20-06-2018;170236;0;105;1;Spese correnti;3;Acquisto di beni e servizi;2;Acquisto di servizi;5;Utenze e canoni;4;Energia elettrica;20-06-2018;
540;18;0;"277,00";"3.466,13";E.N.E.L. ENERGIA S.P.A.;X37139C8F1;SALDO Fatt.n. 004801765729  del 06/12/2017 ENERGIA ELETTRICA - I.P.;20-06-2018;170236;0;105;1;Spese correnti;3;Acquisto di beni e servizi;2;Acquisto di servizi;5;Utenze e canoni;4;Energia elettrica;20-06-2018;
540;19;0;"366,43";"3.466,13";E.N.E.L. ENERGIA S.P.A.;X37139C8F1;SALDO Fatt.n. 004801769262  del 06/12/2017 ENERGIA ELETTRICA - I.P.;20-06-2018;170236;0;105;1;Spese correnti;3;Acquisto di beni e servizi;2;Acquisto di servizi;5;Utenze e canoni;4;Energia elettrica;20-06-2018;
540;20;0;"1.380,50";"3.466,13";E.N.E.L. ENERGIA S.P.A.;X37139C8F1;SALDO Fatt.n. 004801769258  del 06/12/2017 ENERGIA ELETTRICA - I.P.;20-06-2018;170236;0;105;1;Spese correnti;3;Acquisto di beni e servizi;2;Acquisto di servizi;5;Utenze e canoni;4;Energia elettrica;20-06-2018;
541;1;0;"8,21";"1.317,71";E.N.E.L. ENERGIA S.P.A.;X37139C8F1;SALDO Fatt.n. 004801769259  del 06/12/2017 ENERGIA ELETTRICA - I.P.;20-06-2018;170236;0;105;1;Spese correnti;3;Acquisto di beni e servizi;2;Acquisto di servizi;5;Utenze e canoni;4;Energia elettrica;20-06-2018;
541;2;0;"11,47";"1.317,71";E.N.E.L. ENERGIA S.P.A.;X37139C8F1;SALDO Fatt.n. 004801769625  del 06/12/2017 ENERGIA ELETTRICA - I.P.;20-06-2018;170236;0;105;1;Spese correnti;3;Acquisto di beni e servizi;2;Acquisto di servizi;5;Utenze e canoni;4;Energia elettrica;20-06-2018;
541;3;0;"14,03";"1.317,71";E.N.E.L. ENERGIA S.P.A.;X37139C8F1;SALDO Fatt.n. 004801769617  del 06/12/2017 ENERGIA ELETTRICA - I.P.;20-06-2018;170236;0;105;1;Spese correnti;3;Acquisto di beni e servizi;2;Acquisto di servizi;5;Utenze e canoni;4;Energia elettrica;20-06-2018;
541;4;0;"15,95";"1.317,71";E.N.E.L. ENERGIA S.P.A.;X37139C8F1;SALDO Fatt.n. 004801769621  del 06/12/2017 ENERGIA ELETTRICA - I.P.;20-06-2018;170236;0;105;1;Spese correnti;3;Acquisto di beni e servizi;2;Acquisto di servizi;5;Utenze e canoni;4;Energia elettrica;20-06-2018;
541;5;0;"39,45";"1.317,71";E.N.E.L. ENERGIA S.P.A.;X37139C8F1;SALDO Fatt.n. 004801838720  del 11/12/2017 ENERGIA ELETTRICA . I.P.;20-06-2018;170236;0;105;1;Spese correnti;3;Acquisto di beni e servizi;2;Acquisto di servizi;5;Utenze e canoni;4;Energia elettrica;20-06-2018;
541;6;0;"72,20";"1.317,71";E.N.E.L. ENERGIA S.P.A.;X37139C8F1;SALDO Fatt.n. 004801769267  del 06/12/2017 ENERGIA ELETTRICA - I.P.;20-06-2018;170236;0;105;1;Spese correnti;3;Acquisto di beni e servizi;2;Acquisto di servizi;5;Utenze e canoni;4;Energia elettrica;20-06-2018;
541;7;0;"82,41";"1.317,71";E.N.E.L. ENERGIA S.P.A.;X37139C8F1;SALDO Fatt.n. 004801769619  del 06/12/2017 ENERGIA ELETTRICA - I.P.;20-06-2018;170236;0;105;1;Spese correnti;3;Acquisto di beni e servizi;2;Acquisto di servizi;5;Utenze e canoni;4;Energia elettrica;20-06-2018;
541;8;0;"82,63";"1.317,71";E.N.E.L. ENERGIA S.P.A.;X37139C8F1;SALDO Fatt.n. 004801769266  del 06/12/2017 ENERGIA ELETTRICA - I.P.;20-06-2018;170236;0;105;1;Spese correnti;3;Acquisto di beni e servizi;2;Acquisto di servizi;5;Utenze e canoni;4;Energia elettrica;20-06-2018;
541;9;0;"119,51";"1.317,71";E.N.E.L. ENERGIA S.P.A.;X37139C8F1;SALDO Fatt.n. 004801769623  del 06/12/2017 ENERGIA ELETTRICA - I.P.;20-06-2018;170236;0;105;1;Spese correnti;3;Acquisto di beni e servizi;2;Acquisto di servizi;5;Utenze e canoni;4;Energia elettrica;20-06-2018;
541;10;0;"140,25";"1.317,71";E.N.E.L. ENERGIA S.P.A.;X37139C8F1;SALDO Fatt.n. 004801772983  del 06/12/2017 ENERGIA ELETTRICA - I.P.;20-06-2018;170236;0;105;1;Spese correnti;3;Acquisto di beni e servizi;2;Acquisto di servizi;5;Utenze e canoni;4;Energia elettrica;20-06-2018;
541;11;0;"151,43";"1.317,71";E.N.E.L. ENERGIA S.P.A.;X37139C8F1;SALDO Fatt.n. 004801769632  del 06/12/2017 ENERGIA ELETTRICA - I.P.;20-06-2018;170236;0;105;1;Spese correnti;3;Acquisto di beni e servizi;2;Acquisto di servizi;5;Utenze e canoni;4;Energia elettrica;20-06-2018;
541;12;0;"176,42";"1.317,71";E.N.E.L. ENERGIA S.P.A.;X37139C8F1;SALDO Fatt.n. 004801776600  del 06/12/2017 ENERGIA ELETTRICA - I.P.;20-06-2018;170236;0;105;1;Spese correnti;3;Acquisto di beni e servizi;2;Acquisto di servizi;5;Utenze e canoni;4;Energia elettrica;20-06-2018;
541;13;0;"190,20";"1.317,71";E.N.E.L. ENERGIA S.P.A.;X37139C8F1;SALDO Fatt.n. 004801769626  del 06/12/2017 ENERGIA ELETTRICA - I.P.;20-06-2018;170236;0;105;1;Spese correnti;3;Acquisto di beni e servizi;2;Acquisto di servizi;5;Utenze e canoni;4;Energia elettrica;20-06-2018;
541;14;0;"213,55";"1.317,71";E.N.E.L. ENERGIA S.P.A.;X37139C8F1;SALDO Fatt.n. 004801823500  del 11/12/2017 ENERGIA ELETTRICA - I.P.;20-06-2018;170236;0;105;1;Spese correnti;3;Acquisto di beni e servizi;2;Acquisto di servizi;5;Utenze e canoni;4;Energia elettrica;20-06-2018;
542;1;0;"906,36";"906,36";E.N.E.L. ENERGIA S.P.A.;X37139C8F1;SALDO Fatt.n. 004801776596  del 06/12/2017 ENERGIA ELETTRICA - V.LE PAOLUCCI;20-06-2018;140246;0;98;1;Spese correnti;3;Acquisto di beni e servizi;2;Acquisto di servizi;5;Utenze e canoni;4;Energia elettrica;20-06-2018;
543;1;0;"20,15";"897,68";E.N.E.L. ENERGIA S.P.A.;X37139C8F1;SALDO Fatt.n. 004801769263  del 06/12/2017 ENERGIA ELETTRICA - VIA FOCE SNC;20-06-2018;180530;0;107;1;Spese correnti;3;Acquisto di beni e servizi;2;Acquisto di servizi;5;Utenze e canoni;4;Energia elettrica;20-06-2018;
543;2;0;"79,19";"897,68";E.N.E.L. ENERGIA S.P.A.;X37139C8F1;SALDO Fatt.n. 004801778266  del 06/12/2017 ENERGIA ELETTRICA - VIA S.GIACOMO 12;20-06-2018;180530;0;107;1;Spese correnti;3;Acquisto di beni e servizi;2;Acquisto di servizi;5;Utenze e canoni;4;Energia elettrica;20-06-2018;
543;3;0;"119,90";"897,68";E.N.E.L. ENERGIA S.P.A.;X37139C8F1;SALDO Fatt.n. 004801796727  del 09/12/2017 ENERGIA ELETTRICA - VIA VALLEVO' SNC;20-06-2018;180530;0;107;1;Spese correnti;3;Acquisto di beni e servizi;2;Acquisto di servizi;5;Utenze e canoni;4;Energia elettrica;20-06-2018;
543;4;0;"167,46";"897,68";E.N.E.L. ENERGIA S.P.A.;X37139C8F1;SALDO Fatt.n. 004801778268  del 06/12/2017 ENERGIA ELETTRICA - VIA OCCIDENTALE 31;20-06-2018;180530;0;107;1;Spese correnti;3;Acquisto di beni e servizi;2;Acquisto di servizi;5;Utenze e canoni;4;Energia elettrica;20-06-2018;
543;5;0;"187,36";"897,68";E.N.E.L. ENERGIA S.P.A.;X37139C8F1;SALDO Fatt.n. 004801778265  del 06/12/2017 ENERGIA ELETTRICA CAMPO SPORTIVO;20-06-2018;180530;0;107;1;Spese correnti;3;Acquisto di beni e servizi;2;Acquisto di servizi;5;Utenze e canoni;4;Energia elettrica;20-06-2018;
543;6;0;"323,62";"897,68";E.N.E.L. ENERGIA S.P.A.;X37139C8F1;SALDO Fatt.n. 004801778267  del 06/12/2017 ENERGIA ELETTRICA - VIA PIANE FAVARO 36;20-06-2018;180530;0;107;1;Spese correnti;3;Acquisto di beni e servizi;2;Acquisto di servizi;5;Utenze e canoni;4;Energia elettrica;20-06-2018;
544;1;0;"74,01";"625,93";E.N.E.L. ENERGIA S.P.A.;X37139C8F1;SALDO Fatt.n. 004801776601  del 06/12/2017 ENERGIA ELETTRICA - IMP.FOTOVOLTAICO;20-06-2018;180636;0;106;1;Spese correnti;3;Acquisto di beni e servizi;2;Acquisto di servizi;5;Utenze e canoni;4;Energia elettrica;20-06-2018;
544;2;0;"551,92";"625,93";E.N.E.L. ENERGIA S.P.A.;X37139C8F1;SALDO Fatt.n. 004801776373  del 06/12/2017 ENERGIA ELETTRICA - C.DA STERPARI IMP.FOTOVOLTAICO;20-06-2018;180636;0;106;1;Spese correnti;3;Acquisto di beni e servizi;2;Acquisto di servizi;5;Utenze e canoni;4;Energia elettrica;20-06-2018;
545;1;0;"514,78";"514,78";E.N.E.L. ENERGIA S.P.A.;X37139C8F1;SALDO Fatt.n. 004801769618  del 06/12/2017 ENERGIA ELETTRICA - PIAZZA DEGLI EROI 14;20-06-2018;110834;0;97;1;Spese correnti;3;Acquisto di beni e servizi;2;Acquisto di servizi;5;Utenze e canoni;4;Energia elettrica;20-06-2018;
546;1;0;"53,62";"53,62";E.N.E.L. ENERGIA S.P.A.;X37139C8F1;SALDO Fatt.n. 004801778269  del 06/12/2017 ENERGIA ELETTRICA - VIA MAZZINI SNC;20-06-2018;160646;0;100;1;Spese correnti;3;Acquisto di beni e servizi;2;Acquisto di servizi;5;Utenze e canoni;4;Energia elettrica;20-06-2018;
547;1;0;"74,41";"149,42";E.N.E.L. ENERGIA S.P.A.;X37139C8F1;SALDO Fatt.n. 004801769624  del 06/12/2017 ENERGIA ELETTRICA - VIA SCALZINO 20;20-06-2018;110636;0;95;1;Spese correnti;3;Acquisto di beni e servizi;2;Acquisto di servizi;5;Utenze e canoni;4;Energia elettrica;20-06-2018;
547;2;0;"75,01";"149,42";E.N.E.L. ENERGIA S.P.A.;X37139C8F1;SALDO Fatt.n. 004801838719  del 11/12/2017 ENERGIA ELETTRICA;20-06-2018;110636;0;95;1;Spese correnti;3;Acquisto di beni e servizi;2;Acquisto di servizi;5;Utenze e canoni;4;Energia elettrica;20-06-2018;
548;1;0;"98,98";"294,38";E.N.E.L. ENERGIA S.P.A.;X37139C8F1;SALDO Fatt.n. 004801769631  del 06/12/2017 ENERGIA ELETTRICA - VIA C.BATTISTI;20-06-2018;160810;0;101;1;Spese correnti;3;Acquisto di beni e servizi;2;Acquisto di servizi;5;Utenze e canoni;4;Energia elettrica;20-06-2018;
548;2;0;"195,40";"294,38";E.N.E.L. ENERGIA S.P.A.;X37139C8F1;SALDO Fatt.n. 004801769628  del 06/12/2017 ENERGIA ELETTRICA - V.LE PAOLUCCI SNC;20-06-2018;160810;0;101;1;Spese correnti;3;Acquisto di beni e servizi;2;Acquisto di servizi;5;Utenze e canoni;4;Energia elettrica;20-06-2018;
549;1;0;"17,42";"344,40";E.N.E.L. ENERGIA S.P.A.;X37139C8F1;SALDO Fatt.n. 004810076821  del 07/01/2018 ENERGIA ELETTRICA - VIA FOCE POMPA;20-06-2018;180530;0;107;1;Spese correnti;3;Acquisto di beni e servizi;2;Acquisto di servizi;5;Utenze e canoni;4;Energia elettrica;20-06-2018;
549;2;0;"82,63";"344,40";E.N.E.L. ENERGIA S.P.A.;X37139C8F1;SALDO Fatt.n. 004810233286  del 06/02/2018 ENERGIA ELETTRICA SC.ELEM.S.GIACOMO DIC.2017-GEN.2018;20-06-2018;180530;0;107;1;Spese correnti;3;Acquisto di beni e servizi;2;Acquisto di servizi;5;Utenze e canoni;4;Energia elettrica;20-06-2018;
549;3;0;"105,23";"344,40";E.N.E.L. ENERGIA S.P.A.;X37139C8F1;SALDO Fatt.n. 004810274857  del 11/02/2018 ENERGIA ELETTRICA EX SC.PIANE FAVARO DIC.2017-GEN.2018;20-06-2018;180530;0;107;1;Spese correnti;3;Acquisto di beni e servizi;2;Acquisto di servizi;5;Utenze e canoni;4;Energia elettrica;20-06-2018;
549;4;0;"139,12";"344,40";E.N.E.L. ENERGIA S.P.A.;X37139C8F1;SALDO Fatt.n. 004810256287  del 07/02/2018 ENERGIA ELETTRICA VALLEVO' DIC.2017-GEN.2018;20-06-2018;180530;0;107;1;Spese correnti;3;Acquisto di beni e servizi;2;Acquisto di servizi;5;Utenze e canoni;4;Energia elettrica;20-06-2018;
550;1;0;"19,76";"40,76";E.N.E.L. ENERGIA S.P.A.;X37139C8F1;SALDO Fatt.n. 004810276936  del 11/02/2018 ENERGIA ELETTRICA;20-06-2018;180530;0;38;1;Spese correnti;3;Acquisto di beni e servizi;2;Acquisto di servizi;5;Utenze e canoni;4;Energia elettrica;20-06-2018;
550;2;0;"21,00";"40,76";E.N.E.L. ENERGIA S.P.A.;X37139C8F1;SALDO Fatt.n. 004810422656  del 06/03/2018 ENERGIA ELETTRICA - VIA FOCE;20-06-2018;180530;0;38;1;Spese correnti;3;Acquisto di beni e servizi;2;Acquisto di servizi;5;Utenze e canoni;4;Energia elettrica;20-06-2018;
551;1;0;"604,95";"1.254,92";E.N.E.L. ENERGIA S.P.A.; ;SALDO Fatt.n. 004810434517  del 06/03/2018 ENERGIA ELETTRICA - FOTOVOLTAICO C.DA STERPARI;20-06-2018;180636;0;39;1;Spese correnti;3;Acquisto di beni e servizi;2;Acquisto di servizi;5;Utenze e canoni;4;Energia elettrica;20-06-2018;
551;2;0;"649,97";"1.254,92";E.N.E.L. ENERGIA S.P.A.; ;SALDO Fatt.n. 004810267358  del 09/02/2018 ENERGIA ELETTRICA FOTOVOLTAICO GEN.2018;20-06-2018;180636;0;39;1;Spese correnti;3;Acquisto di beni e servizi;2;Acquisto di servizi;5;Utenze e canoni;4;Energia elettrica;20-06-2018;
552;1;0;"70,83";"651,07";E.N.E.L. ENERGIA S.P.A.;X37139C8F1;SALDO Fatt.n. 004810332670  del 14/02/2018 ENERGIA ELETTRICA VIA STERPARI DIC.2017-GEN.2018;20-06-2018;180636;0;106;1;Spese correnti;3;Acquisto di beni e servizi;2;Acquisto di servizi;5;Utenze e canoni;4;Energia elettrica;20-06-2018;
552;2;0;"580,24";"651,07";E.N.E.L. ENERGIA S.P.A.;X37139C8F1;SALDO Fatt.n. 004810077556  del 07/01/2018 ENERGIA ELETTRICA- FOTOVOLTAICO;20-06-2018;180636;0;106;1;Spese correnti;3;Acquisto di beni e servizi;2;Acquisto di servizi;5;Utenze e canoni;4;Energia elettrica;20-06-2018;
553;1;0;"379,31";"379,31";E.N.E.L. ENERGIA S.P.A.;X37139C8F1;SALDO Fatt.n. 004810241613  del 06/02/2018 ENERGIA ELETTRICA IMP.POLIVALENTI DIC.2017-GEN.2018;20-06-2018;161332;0;103;1;Spese correnti;3;Acquisto di beni e servizi;2;Acquisto di servizi;5;Utenze e canoni;4;Energia elettrica;20-06-2018;
554;1;0;"202,04";"610,42";E.N.E.L. ENERGIA S.P.A.;X9617FD504;SALDO Fatt.n. 004810233285  del 06/02/2018 ENERGIA ELETTRICA CAMPO SPORTIVO DIC.2017-GEN.2018;20-06-2018;161320;0;36;1;Spese correnti;3;Acquisto di beni e servizi;2;Acquisto di servizi;5;Utenze e canoni;4;Energia elettrica;20-06-2018;
554;2;0;"408,38";"610,42";E.N.E.L. ENERGIA S.P.A.;X9617FD504;SALDO Fatt.n. 004801776597  del 06/12/2017 ENERGIA ELETTRICA;20-06-2018;161320;0;36;1;Spese correnti;3;Acquisto di beni e servizi;2;Acquisto di servizi;5;Utenze e canoni;4;Energia elettrica;20-06-2018;
555;1;0;"508,92";"508,92";E.N.E.L. ENERGIA S.P.A.; ;ACCONTO Fatt.n. 004810241612  del 06/02/2018 ENERGIA ELETTRICA SCUOLE DIC.2017-GEN.2018;20-06-2018;140246;0;34;1;Spese correnti;3;Acquisto di beni e servizi;2;Acquisto di servizi;5;Utenze e canoni;4;Energia elettrica;20-06-2018;
556;1;0;"724,45";"724,45";E.N.E.L. ENERGIA S.P.A.;X37139C8F1;SALDO Fatt.n. 004810240400  del 06/02/2018 ENERGIA ELETTRICA UFFICI DIC.2017-GEN.2018;20-06-2018;110834;0;97;1;Spese correnti;3;Acquisto di beni e servizi;2;Acquisto di servizi;5;Utenze e canoni;4;Energia elettrica;20-06-2018;
557;1;0;"105,69";"417,13";E.N.E.L. ENERGIA S.P.A.;X37139C8F1;SALDO Fatt.n. 004810240411  del 06/02/2018 ENERGIA ELETTRICA RETE FOGNANTE VIA CESARE BATTISTI DIC.2017-GEN.2018;20-06-2018;160810;0;101;1;Spese correnti;3;Acquisto di beni e servizi;2;Acquisto di servizi;5;Utenze e canoni;4;Energia elettrica;20-06-2018;
557;2;0;"105,87";"417,13";E.N.E.L. ENERGIA S.P.A.;X37139C8F1;SALDO Fatt.n. 004810241605  del 06/02/2018 ENERGIA ELETTRICA RETE FOGNANTE VIA MAZZINI DIC.2017-GEN2018;20-06-2018;160810;0;101;1;Spese correnti;3;Acquisto di beni e servizi;2;Acquisto di servizi;5;Utenze e canoni;4;Energia elettrica;20-06-2018;
557;3;0;"205,57";"417,13";E.N.E.L. ENERGIA S.P.A.;X37139C8F1;SALDO Fatt.n. 004810240409  del 06/02/2018 ENERGIA ELETTRICA ELETTROPOMPA VIA PAOLUCCI DIC.2017-GEN.2018;20-06-2018;160810;0;101;1;Spese correnti;3;Acquisto di beni e servizi;2;Acquisto di servizi;5;Utenze e canoni;4;Energia elettrica;20-06-2018;
558;1;0;"65,23";"65,23";E.N.E.L. ENERGIA S.P.A.;X37139C8F1;SALDO Fatt.n. 004810234280  del 06/02/2018 ENERGIA ELETTRICA CIMITERO DEC.2017-GEN.2018;20-06-2018;160646;0;100;1;Spese correnti;3;Acquisto di beni e servizi;2;Acquisto di servizi;5;Utenze e canoni;4;Energia elettrica;20-06-2018;
559;1;0;"197,52";"197,52";E.N.E.L. ENERGIA S.P.A.;XE2139C8F3;SALDO Fatt.n. 004810233287  del 06/02/2018 ENERGIA ELETTRICA BIBLIOTECA DIC.2017-GEN.2018;20-06-2018;140716;0;90;1;Spese correnti;3;Acquisto di beni e servizi;2;Acquisto di servizi;5;Utenze e canoni;1;Telefonia fissa;20-06-2018;
560;1;0;"70,67";"142,25";E.N.E.L. ENERGIA S.P.A.;X37139C8F1;SALDO Fatt.n. 004810332805  del 14/02/2018 ENERGIA ELETTRICA SCALZINO DIC.2017-GEN.2018;20-06-2018;110636;0;95;1;Spese correnti;3;Acquisto di beni e servizi;2;Acquisto di servizi;5;Utenze e canoni;4;Energia elettrica;20-06-2018;
560;2;0;"71,58";"142,25";E.N.E.L. ENERGIA S.P.A.;X37139C8F1;SALDO Fatt.n. 004810274858  del 11/02/2018 ENERGIA ELETTRICA VICOLO DEL PORTICO DIC.-2017-GEN.2018;20-06-2018;110636;0;95;1;Spese correnti;3;Acquisto di beni e servizi;2;Acquisto di servizi;5;Utenze e canoni;4;Energia elettrica;20-06-2018;
562;1;0;"18.451,06";"18.451,06";RIECO SPA;3475364917;SALDO Fatt.n. 170706  del 30/09/2017 SERVIZIO DI RACCOLTA R.S.U. DI SETTEMBRE 2017;20-06-2018;160948;0;87;1;Spese correnti;3;Acquisto di beni e servizi;2;Acquisto di servizi;15;Contratti di servizio pubblico;5;Contratti di servizio per il conferimento in discarica dei rifiuti;20-06-2018;
563;1;0;"1.597,15";"1.597,15";RIECO SPA;3475364917;SALDO Fatt.n. 170864  del 31/10/2017 ALLEGATO DISCIPLINARE "D" DI OTTOBRE 2017;20-06-2018;160944;0;92;1;Spese correnti;3;Acquisto di beni e servizi;2;Acquisto di servizi;15;Contratti di servizio pubblico;5;Contratti di servizio per il conferimento in discarica dei rifiuti;20-06-2018;
564;1;0;"852,19";"2.193,01";CONSORZIO COMPRENSORIALE SMALTIMENTO.ECO.LAN. S.P.A.;ZF822037E1;SALDO Fatt.n. 100181  del 28/02/2018 CONFERIMENTO MATERIALI MISTI DI FEBBRAIO 2018;20-06-2018;160944;0;84;1;Spese correnti;3;Acquisto di beni e servizi;2;Acquisto di servizi;15;Contratti di servizio pubblico;5;Contratti di servizio per il conferimento in discarica dei rifiuti;20-06-2018;
564;2;0;"1.340,82";"2.193,01";CONSORZIO COMPRENSORIALE SMALTIMENTO.ECO.LAN. S.P.A.;ZF822037E1;SALDO Fatt.n. 100084  del 31/01/2018 CONFERIMENTO MATERIALI MISTI DI GENNAIO 2018;20-06-2018;160944;0;84;1;Spese correnti;3;Acquisto di beni e servizi;2;Acquisto di servizi;15;Contratti di servizio pubblico;5;Contratti di servizio per il conferimento in discarica dei rifiuti;20-06-2018;
565;1;0;"5.528,03";"5.528,03";CONSORZIO COMPRENSORIALE SMALTIMENTO.ECO.LAN. S.P.A.;Z7B220424F;SALDO Fatt.n. 100057  del 31/01/2018;20-06-2018;160944;0;85;1;Spese correnti;3;Acquisto di beni e servizi;2;Acquisto di servizi;15;Contratti di servizio pubblico;5;Contratti di servizio per il conferimento in discarica dei rifiuti;20-06-2018;
566;1;0;"27,51";"27,51";TELECOM ITALIA S.P.A.;Z53178E0E3;ACCONTO Fatt.n. 7X01404609  del 16/04/2018 3BIM 2018;20-06-2018;130132;0;40;1;Spese correnti;3;Acquisto di beni e servizi;2;Acquisto di servizi;13;Servizi ausiliari per il funzionamento dell'ente;999;Altri servizi ausiliari n.a.c.;20-06-2018;
567;1;0;"8,18";"24,54";BANCA POPOLARE DELL'EMILIA ROMAGNA; ;PROVVISORIO DI USCITA N.457;20-06-2018;190018;0;0;1;Spese correnti;10;Altre spese correnti;99;Altre spese correnti n.a.c.;99;Altre spese correnti n.a.c.;999;Altre spese correnti n.a.c.;20-06-2018;
567;2;0;"8,18";"24,54";BANCA POPOLARE DELL'EMILIA ROMAGNA; ;PROVVISORIO DI USCITA N.480;20-06-2018;190018;0;0;1;Spese correnti;10;Altre spese correnti;99;Altre spese correnti n.a.c.;99;Altre spese correnti n.a.c.;999;Altre spese correnti n.a.c.;20-06-2018;
567;3;0;"8,18";"24,54";BANCA POPOLARE DELL'EMILIA ROMAGNA; ;PROVVISORIO DI USCITA N.481;20-06-2018;190018;0;0;1;Spese correnti;10;Altre spese correnti;99;Altre spese correnti n.a.c.;99;Altre spese correnti n.a.c.;999;Altre spese correnti n.a.c.;20-06-2018;
569;1;0;"8,39";"1.750,85";E.N.E.L. ENERGIA S.P.A.;X37139C8F1;SALDO Fatt.n. 004810076819  del 07/01/2018 ENERGIA ELETTRICA  I.P.;20-06-2018;170236;0;105;1;Spese correnti;3;Acquisto di beni e servizi;2;Acquisto di servizi;5;Utenze e canoni;4;Energia elettrica;20-06-2018;
569;2;0;"8,69";"1.750,85";E.N.E.L. ENERGIA S.P.A.;X37139C8F1;SALDO Fatt.n. 004810076818  del 07/01/2018 ENERGIA ELETTRICA - I.P.;20-06-2018;170236;0;105;1;Spese correnti;3;Acquisto di beni e servizi;2;Acquisto di servizi;5;Utenze e canoni;4;Energia elettrica;20-06-2018;
569;3;0;"9,50";"1.750,85";E.N.E.L. ENERGIA S.P.A.;X37139C8F1;SALDO Fatt.n. 004810076830  del 07/01/2018 ENERGIA ELETTRICA  I.P.;20-06-2018;170236;0;105;1;Spese correnti;3;Acquisto di beni e servizi;2;Acquisto di servizi;5;Utenze e canoni;4;Energia elettrica;20-06-2018;
569;4;0;"12,07";"1.750,85";E.N.E.L. ENERGIA S.P.A.;X37139C8F1;SALDO Fatt.n. 004810076822  del 07/01/2018 ENERGIA ELETTRICA  I.P.;20-06-2018;170236;0;105;1;Spese correnti;3;Acquisto di beni e servizi;2;Acquisto di servizi;5;Utenze e canoni;4;Energia elettrica;20-06-2018;
569;5;0;"12,07";"1.750,85";E.N.E.L. ENERGIA S.P.A.;X37139C8F1;SALDO Fatt.n. 004810076833  del 07/01/2018 ENERGIA ELETTRICA  I.P.;20-06-2018;170236;0;105;1;Spese correnti;3;Acquisto di beni e servizi;2;Acquisto di servizi;5;Utenze e canoni;4;Energia elettrica;20-06-2018;
569;6;0;"17,20";"1.750,85";E.N.E.L. ENERGIA S.P.A.;X37139C8F1;SALDO Fatt.n. 004810076826  del 07/01/2018 ENERGIA ELETTRICA  I.P.;20-06-2018;170236;0;105;1;Spese correnti;3;Acquisto di beni e servizi;2;Acquisto di servizi;5;Utenze e canoni;4;Energia elettrica;20-06-2018;
569;7;0;"62,22";"1.750,85";E.N.E.L. ENERGIA S.P.A.;X37139C8F1;SALDO Fatt.n. 004810076824  del 07/01/2018 ENERGIA ELETTRICA  I.P.;20-06-2018;170236;0;105;1;Spese correnti;3;Acquisto di beni e servizi;2;Acquisto di servizi;5;Utenze e canoni;4;Energia elettrica;20-06-2018;
569;8;0;"88,33";"1.750,85";E.N.E.L. ENERGIA S.P.A.;X37139C8F1;SALDO Fatt.n. 004810076823  del 07/01/2018 ENERGIA ELETTRICA  I.P.;20-06-2018;170236;0;105;1;Spese correnti;3;Acquisto di beni e servizi;2;Acquisto di servizi;5;Utenze e canoni;4;Energia elettrica;20-06-2018;
569;9;0;"90,40";"1.750,85";E.N.E.L. ENERGIA S.P.A.;X37139C8F1;SALDO Fatt.n. 004810076829  del 07/01/2018 ENERGIA ELETTRICA  I.P.;20-06-2018;170236;0;105;1;Spese correnti;3;Acquisto di beni e servizi;2;Acquisto di servizi;5;Utenze e canoni;4;Energia elettrica;20-06-2018;
569;10;0;"92,56";"1.750,85";E.N.E.L. ENERGIA S.P.A.;X37139C8F1;SALDO Fatt.n. 004810076836  del 07/01/2018 ENERGIA ELETTRICA  I.P.;20-06-2018;170236;0;105;1;Spese correnti;3;Acquisto di beni e servizi;2;Acquisto di servizi;5;Utenze e canoni;4;Energia elettrica;20-06-2018;
569;11;0;"105,94";"1.750,85";E.N.E.L. ENERGIA S.P.A.;X37139C8F1;SALDO Fatt.n. 004810076831  del 07/01/2018 ENERGIA ELETTRICA  I.P.;20-06-2018;170236;0;105;1;Spese correnti;3;Acquisto di beni e servizi;2;Acquisto di servizi;5;Utenze e canoni;4;Energia elettrica;20-06-2018;
569;12;0;"106,37";"1.750,85";E.N.E.L. ENERGIA S.P.A.;X37139C8F1;SALDO Fatt.n. 004810076828  del 07/01/2018 ENERGIA ELETTRICA  I.P.;20-06-2018;170236;0;105;1;Spese correnti;3;Acquisto di beni e servizi;2;Acquisto di servizi;5;Utenze e canoni;4;Energia elettrica;20-06-2018;
569;13;0;"124,55";"1.750,85";E.N.E.L. ENERGIA S.P.A.;X37139C8F1;SALDO Fatt.n. 004810076835  del 07/01/2018 ENERGIA ELETTRICA  I.P.;20-06-2018;170236;0;105;1;Spese correnti;3;Acquisto di beni e servizi;2;Acquisto di servizi;5;Utenze e canoni;4;Energia elettrica;20-06-2018;
569;14;0;"128,37";"1.750,85";E.N.E.L. ENERGIA S.P.A.;X37139C8F1;SALDO Fatt.n. 004810076832  del 07/01/2018 ENERGIA ELETTRICA  I.P.;20-06-2018;170236;0;105;1;Spese correnti;3;Acquisto di beni e servizi;2;Acquisto di servizi;5;Utenze e canoni;4;Energia elettrica;20-06-2018;
569;15;0;"190,41";"1.750,85";E.N.E.L. ENERGIA S.P.A.;X37139C8F1;SALDO Fatt.n. 004810076827  del 07/01/2018 ENERGIA ELETTRICA  I.P.;20-06-2018;170236;0;105;1;Spese correnti;3;Acquisto di beni e servizi;2;Acquisto di servizi;5;Utenze e canoni;4;Energia elettrica;20-06-2018;
569;16;0;"204,84";"1.750,85";E.N.E.L. ENERGIA S.P.A.;X37139C8F1;SALDO Fatt.n. 004810076834  del 07/01/2018 ENERGIA ELETTRICA  I.P.;20-06-2018;170236;0;105;1;Spese correnti;3;Acquisto di beni e servizi;2;Acquisto di servizi;5;Utenze e canoni;4;Energia elettrica;20-06-2018;
569;17;0;"488,94";"1.750,85";E.N.E.L. ENERGIA S.P.A.;X37139C8F1;SALDO Fatt.n. 004810076820  del 07/01/2018 ENERGIA ELETTRICA  I.P.;20-06-2018;170236;0;105;1;Spese correnti;3;Acquisto di beni e servizi;2;Acquisto di servizi;5;Utenze e canoni;4;Energia elettrica;20-06-2018;
570;1;0;"9,21";"3.854,67";E.N.E.L. ENERGIA S.P.A.;X37139C8F1;SALDO Fatt.n. 004810154249  del 20/01/2018 PUBBLICA ILLUMINAZIONE ACQUARELLI DIC.2017;20-06-2018;170236;0;105;1;Spese correnti;3;Acquisto di beni e servizi;2;Acquisto di servizi;5;Utenze e canoni;4;Energia elettrica;20-06-2018;
570;2;0;"10,76";"3.854,67";E.N.E.L. ENERGIA S.P.A.;X37139C8F1;SALDO Fatt.n. 004810107872  del 12/01/2018 ENERGIA ELETTRICA - I.P.;20-06-2018;170236;0;105;1;Spese correnti;3;Acquisto di beni e servizi;2;Acquisto di servizi;5;Utenze e canoni;4;Energia elettrica;20-06-2018;
570;3;0;"16,97";"3.854,67";E.N.E.L. ENERGIA S.P.A.;X37139C8F1;SALDO Fatt.n. 004810082755  del 08/01/2018 ENERGIA ELETTRICA - I.P.;20-06-2018;170236;0;105;1;Spese correnti;3;Acquisto di beni e servizi;2;Acquisto di servizi;5;Utenze e canoni;4;Energia elettrica;20-06-2018;
570;4;0;"20,17";"3.854,67";E.N.E.L. ENERGIA S.P.A.;X37139C8F1;SALDO Fatt.n. 004810082756  del 08/01/2018 ENERGIA ELETTRICA - I.P.;20-06-2018;170236;0;105;1;Spese correnti;3;Acquisto di beni e servizi;2;Acquisto di servizi;5;Utenze e canoni;4;Energia elettrica;20-06-2018;
570;5;0;"41,36";"3.854,67";E.N.E.L. ENERGIA S.P.A.;X37139C8F1;SALDO Fatt.n. 004810082753  del 08/01/2018 ENERGIA ELETTRICA -I.P.;20-06-2018;170236;0;105;1;Spese correnti;3;Acquisto di beni e servizi;2;Acquisto di servizi;5;Utenze e canoni;4;Energia elettrica;20-06-2018;
570;6;0;"43,52";"3.854,67";E.N.E.L. ENERGIA S.P.A.;X37139C8F1;SALDO Fatt.n. 004810102291  del 12/01/2018 ENERGIA ELETTRICA - I.P.;20-06-2018;170236;0;105;1;Spese correnti;3;Acquisto di beni e servizi;2;Acquisto di servizi;5;Utenze e canoni;4;Energia elettrica;20-06-2018;
570;7;0;"43,72";"3.854,67";E.N.E.L. ENERGIA S.P.A.;X37139C8F1;SALDO Fatt.n. 004810109272  del 12/01/2018 ENERGIA ELETTRICA - I.P.;20-06-2018;170236;0;105;1;Spese correnti;3;Acquisto di beni e servizi;2;Acquisto di servizi;5;Utenze e canoni;4;Energia elettrica;20-06-2018;
570;8;0;"67,66";"3.854,67";E.N.E.L. ENERGIA S.P.A.;X37139C8F1;SALDO Fatt.n. 004810076825  del 07/01/2018 ENERGIA ELETTRICA;20-06-2018;170236;0;105;1;Spese correnti;3;Acquisto di beni e servizi;2;Acquisto di servizi;5;Utenze e canoni;4;Energia elettrica;20-06-2018;
570;9;0;"123,67";"3.854,67";E.N.E.L. ENERGIA S.P.A.;X37139C8F1;SALDO Fatt.n. 004810082754  del 08/01/2018 ENERGIA ELETTRICA - I.P.;20-06-2018;170236;0;105;1;Spese correnti;3;Acquisto di beni e servizi;2;Acquisto di servizi;5;Utenze e canoni;4;Energia elettrica;20-06-2018;
570;10;0;"139,75";"3.854,67";E.N.E.L. ENERGIA S.P.A.;X37139C8F1;SALDO Fatt.n. 004810153433  del 20/01/2018 PUBBLICA ILLUMINAZIONE VALLEVO' DIC.2017;20-06-2018;170236;0;105;1;Spese correnti;3;Acquisto di beni e servizi;2;Acquisto di servizi;5;Utenze e canoni;4;Energia elettrica;20-06-2018;
570;11;0;"144,74";"3.854,67";E.N.E.L. ENERGIA S.P.A.;X37139C8F1;SALDO Fatt.n. 004810082757  del 08/01/2018 ENERGIA ELETTRICA -I.P.;20-06-2018;170236;0;105;1;Spese correnti;3;Acquisto di beni e servizi;2;Acquisto di servizi;5;Utenze e canoni;4;Energia elettrica;20-06-2018;
570;12;0;"158,50";"3.854,67";E.N.E.L. ENERGIA S.P.A.;X37139C8F1;SALDO Fatt.n. 004810233535  del 06/02/2018 PUBBLICA ILLUMINAZIONE C.DA ACQUARELLI DIC.2017-GEN.2018;20-06-2018;170236;0;105;1;Spese correnti;3;Acquisto di beni e servizi;2;Acquisto di servizi;5;Utenze e canoni;4;Energia elettrica;20-06-2018;
570;13;0;"234,30";"3.854,67";E.N.E.L. ENERGIA S.P.A.;X37139C8F1;SALDO Fatt.n. 004810102292  del 12/01/2018 ENERGIA ELETTRICA - I.P.;20-06-2018;170236;0;105;1;Spese correnti;3;Acquisto di beni e servizi;2;Acquisto di servizi;5;Utenze e canoni;4;Energia elettrica;20-06-2018;
570;14;0;"257,44";"3.854,67";E.N.E.L. ENERGIA S.P.A.;X37139C8F1;SALDO Fatt.n. 004810107874  del 12/01/2018 ENERGIA ELETTRICA - I.P.;20-06-2018;170236;0;105;1;Spese correnti;3;Acquisto di beni e servizi;2;Acquisto di servizi;5;Utenze e canoni;4;Energia elettrica;20-06-2018;
570;15;0;"299,00";"3.854,67";E.N.E.L. ENERGIA S.P.A.;X37139C8F1;SALDO Fatt.n. 004810079103  del 07/01/2018 ENERGIA ELETTRICA -I.P.;20-06-2018;170236;0;105;1;Spese correnti;3;Acquisto di beni e servizi;2;Acquisto di servizi;5;Utenze e canoni;4;Energia elettrica;20-06-2018;
570;16;0;"733,84";"3.854,67";E.N.E.L. ENERGIA S.P.A.;X37139C8F1;SALDO Fatt.n. 004810107873  del 12/01/2018 ENERGIA ELETTRICA - I.P.;20-06-2018;170236;0;105;1;Spese correnti;3;Acquisto di beni e servizi;2;Acquisto di servizi;5;Utenze e canoni;4;Energia elettrica;20-06-2018;
570;17;0;"1.510,06";"3.854,67";E.N.E.L. ENERGIA S.P.A.;X37139C8F1;SALDO Fatt.n. 004810076817  del 07/01/2018 ENERGIA ELETTRICA  I.P.;20-06-2018;170236;0;105;1;Spese correnti;3;Acquisto di beni e servizi;2;Acquisto di servizi;5;Utenze e canoni;4;Energia elettrica;20-06-2018;
571;1;0;"5,21";"4.073,67";E.N.E.L. ENERGIA S.P.A.;X37139C8F1;SALDO Fatt.n. 004810241614  del 06/02/2018 PUBBLICA ILLUMINAZIONE - GENNAIO 2018;20-06-2018;170236;0;105;1;Spese correnti;3;Acquisto di beni e servizi;2;Acquisto di servizi;5;Utenze e canoni;4;Energia elettrica;20-06-2018;
571;2;0;"9,47";"4.073,67";E.N.E.L. ENERGIA S.P.A.;X37139C8F1;SALDO Fatt.n. 004810240402  del 06/02/2018 PUBBLICA ILLUMINAZIONE - GENNAIO 2018;20-06-2018;170236;0;105;1;Spese correnti;3;Acquisto di beni e servizi;2;Acquisto di servizi;5;Utenze e canoni;4;Energia elettrica;20-06-2018;
571;3;0;"12,48";"4.073,67";E.N.E.L. ENERGIA S.P.A.;X37139C8F1;SALDO Fatt.n. 004810240406  del 06/02/2018 PUBBLICA ILLUMINAZIONE - GENNAIO 2018;20-06-2018;170236;0;105;1;Spese correnti;3;Acquisto di beni e servizi;2;Acquisto di servizi;5;Utenze e canoni;4;Energia elettrica;20-06-2018;
571;4;0;"12,70";"4.073,67";E.N.E.L. ENERGIA S.P.A.;X37139C8F1;SALDO Fatt.n. 004810241608  del 06/02/2018 PUBBLICA ILLUMINAZIONE - GENNAIO 2018;20-06-2018;170236;0;105;1;Spese correnti;3;Acquisto di beni e servizi;2;Acquisto di servizi;5;Utenze e canoni;4;Energia elettrica;20-06-2018;
571;5;0;"17,26";"4.073,67";E.N.E.L. ENERGIA S.P.A.;X37139C8F1;SALDO Fatt.n. 004810240403  del 06/02/2018 PUBBLICA ILLUMINAZIONE - GENNAIO 2018;20-06-2018;170236;0;105;1;Spese correnti;3;Acquisto di beni e servizi;2;Acquisto di servizi;5;Utenze e canoni;4;Energia elettrica;20-06-2018;
571;6;0;"38,23";"4.073,67";E.N.E.L. ENERGIA S.P.A.;X37139C8F1;SALDO Fatt.n. 004810274859  del 11/02/2018 PUBBLICA ILLUMINAZIONE - GENNAIO 2018;20-06-2018;170236;0;105;1;Spese correnti;3;Acquisto di beni e servizi;2;Acquisto di servizi;5;Utenze e canoni;4;Energia elettrica;20-06-2018;
571;7;0;"41,58";"4.073,67";E.N.E.L. ENERGIA S.P.A.;X37139C8F1;SALDO Fatt.n. 004810237543  del 06/02/2018 ENERGIA ELETTRICA;20-06-2018;170236;0;105;1;Spese correnti;3;Acquisto di beni e servizi;2;Acquisto di servizi;5;Utenze e canoni;4;Energia elettrica;20-06-2018;
571;8;0;"60,62";"4.073,67";E.N.E.L. ENERGIA S.P.A.;X37139C8F1;SALDO Fatt.n. 004810241610  del 06/02/2018 ENERGIA ELETTRICA;20-06-2018;170236;0;105;1;Spese correnti;3;Acquisto di beni e servizi;2;Acquisto di servizi;5;Utenze e canoni;4;Energia elettrica;20-06-2018;
571;9;0;"83,80";"4.073,67";E.N.E.L. ENERGIA S.P.A.;X37139C8F1;SALDO Fatt.n. 004810240413  del 06/02/2018 PUBBLICA ILLUMINAZIONE - GENNAIO 2018;20-06-2018;170236;0;105;1;Spese correnti;3;Acquisto di beni e servizi;2;Acquisto di servizi;5;Utenze e canoni;4;Energia elettrica;20-06-2018;
571;10;0;"87,69";"4.073,67";E.N.E.L. ENERGIA S.P.A.;X37139C8F1;SALDO Fatt.n. 004810241609  del 06/02/2018 PUBBLICA ILLUMINAZIONE - GENNAIO 2018;20-06-2018;170236;0;105;1;Spese correnti;3;Acquisto di beni e servizi;2;Acquisto di servizi;5;Utenze e canoni;4;Energia elettrica;20-06-2018;
571;11;0;"108,34";"4.073,67";E.N.E.L. ENERGIA S.P.A.;X37139C8F1;SALDO Fatt.n. 004810276935  del 11/02/2018 PUBBLICA ILLUMINAZIONE - GENNAIO 2018;20-06-2018;170236;0;105;1;Spese correnti;3;Acquisto di beni e servizi;2;Acquisto di servizi;5;Utenze e canoni;4;Energia elettrica;20-06-2018;
571;12;0;"116,55";"4.073,67";E.N.E.L. ENERGIA S.P.A.;X37139C8F1;SALDO Fatt.n. 004810276937  del 11/02/2018 PUBBLICA ILLUMINAZIONE - GENNAIO 2018;20-06-2018;170236;0;105;1;Spese correnti;3;Acquisto di beni e servizi;2;Acquisto di servizi;5;Utenze e canoni;4;Energia elettrica;20-06-2018;
571;13;0;"127,95";"4.073,67";E.N.E.L. ENERGIA S.P.A.;X37139C8F1;SALDO Fatt.n. 004810240405  del 06/02/2018 PUBBLICA ILLUMINAZIONE - GENNAIO 2018;20-06-2018;170236;0;105;1;Spese correnti;3;Acquisto di beni e servizi;2;Acquisto di servizi;5;Utenze e canoni;4;Energia elettrica;20-06-2018;
571;14;0;"139,14";"4.073,67";E.N.E.L. ENERGIA S.P.A.;X37139C8F1;SALDO Fatt.n. 004810281804  del 11/02/2018 PUBBLICA ILLUMINAZIONE - GENNAIO 2018;20-06-2018;170236;0;105;1;Spese correnti;3;Acquisto di beni e servizi;2;Acquisto di servizi;5;Utenze e canoni;4;Energia elettrica;20-06-2018;
571;15;0;"183,39";"4.073,67";E.N.E.L. ENERGIA S.P.A.;X37139C8F1;SALDO Fatt.n. 004810241616  del 06/02/2018 PUBBLICA ILLUMINAZIONE - GENNAIO 2018;20-06-2018;170236;0;105;1;Spese correnti;3;Acquisto di beni e servizi;2;Acquisto di servizi;5;Utenze e canoni;4;Energia elettrica;20-06-2018;
571;16;0;"256,16";"4.073,67";E.N.E.L. ENERGIA S.P.A.;X37139C8F1;SALDO Fatt.n. 004810240414  del 06/02/2018 PUBBLICA ILLUMINAZIONE - GENNAIO 2018;20-06-2018;170236;0;105;1;Spese correnti;3;Acquisto di beni e servizi;2;Acquisto di servizi;5;Utenze e canoni;4;Energia elettrica;20-06-2018;
571;17;0;"293,62";"4.073,67";E.N.E.L. ENERGIA S.P.A.;X37139C8F1;SALDO Fatt.n. 004810243360  del 06/02/2018 PUBBLICA ILLUMINAZIONE - GENNAIO 2018;20-06-2018;170236;0;105;1;Spese correnti;3;Acquisto di beni e servizi;2;Acquisto di servizi;5;Utenze e canoni;4;Energia elettrica;20-06-2018;
571;18;0;"479,68";"4.073,67";E.N.E.L. ENERGIA S.P.A.;X37139C8F1;SALDO Fatt.n. 004810281803  del 11/02/2018 PUBBLICA ILLUMINAZIONE - GENNAIO 2018;20-06-2018;170236;0;105;1;Spese correnti;3;Acquisto di beni e servizi;2;Acquisto di servizi;5;Utenze e canoni;4;Energia elettrica;20-06-2018;
571;19;0;"596,12";"4.073,67";E.N.E.L. ENERGIA S.P.A.;X37139C8F1;SALDO Fatt.n. 004810241607  del 06/02/2018 PUBBLICA ILLUMINAZIONE - GENNAIO 2018;20-06-2018;170236;0;105;1;Spese correnti;3;Acquisto di beni e servizi;2;Acquisto di servizi;5;Utenze e canoni;4;Energia elettrica;20-06-2018;
571;20;0;"1.403,68";"4.073,67";E.N.E.L. ENERGIA S.P.A.;X37139C8F1;SALDO Fatt.n. 004810237544  del 06/02/2018 PUBBLICA ILLUMINAZIONE - GENNAIO 2018;20-06-2018;170236;0;105;1;Spese correnti;3;Acquisto di beni e servizi;2;Acquisto di servizi;5;Utenze e canoni;4;Energia elettrica;20-06-2018;
572;1;0;"7,82";"1.425,68";E.N.E.L. ENERGIA S.P.A.;X37139C8F1;SALDO Fatt.n. 004810422663  del 06/03/2018 ILLUMINAZIONE PUBBLICA- FEBBRAIO 2018;20-06-2018;170236;0;105;1;Spese correnti;3;Acquisto di beni e servizi;2;Acquisto di servizi;5;Utenze e canoni;4;Energia elettrica;20-06-2018;
572;2;0;"8,32";"1.425,68";E.N.E.L. ENERGIA S.P.A.;X37139C8F1;SALDO Fatt.n. 004810241606  del 06/02/2018 PUBBLICA ILLUMINAZIONE GENNAIO 2018;20-06-2018;170236;0;105;1;Spese correnti;3;Acquisto di beni e servizi;2;Acquisto di servizi;5;Utenze e canoni;4;Energia elettrica;20-06-2018;
572;3;0;"8,59";"1.425,68";E.N.E.L. ENERGIA S.P.A.;X37139C8F1;SALDO Fatt.n. 004810237545  del 06/02/2018 PUBBLICA ILLUMINAZIONE GENNAIO 2018;20-06-2018;170236;0;105;1;Spese correnti;3;Acquisto di beni e servizi;2;Acquisto di servizi;5;Utenze e canoni;4;Energia elettrica;20-06-2018;
572;4;0;"9,25";"1.425,68";E.N.E.L. ENERGIA S.P.A.;X37139C8F1;SALDO Fatt.n. 004810241615  del 06/02/2018 PUBBLICA ILLUMINAZIONE GENNAIO 2018;20-06-2018;170236;0;105;1;Spese correnti;3;Acquisto di beni e servizi;2;Acquisto di servizi;5;Utenze e canoni;4;Energia elettrica;20-06-2018;
572;5;0;"11,43";"1.425,68";E.N.E.L. ENERGIA S.P.A.;X37139C8F1;SALDO Fatt.n. 004810240399  del 06/02/2018 PUBBLICA ILLUMINAZIONE GENNAIO 2018;20-06-2018;170236;0;105;1;Spese correnti;3;Acquisto di beni e servizi;2;Acquisto di servizi;5;Utenze e canoni;4;Energia elettrica;20-06-2018;
572;6;0;"11,43";"1.425,68";E.N.E.L. ENERGIA S.P.A.;X37139C8F1;SALDO Fatt.n. 004810424241  del 06/03/2018 PUBBLICA ILLUMINAZIONE FEBBRAIO 2018;20-06-2018;170236;0;105;1;Spese correnti;3;Acquisto di beni e servizi;2;Acquisto di servizi;5;Utenze e canoni;4;Energia elettrica;20-06-2018;
572;7;0;"14,66";"1.425,68";E.N.E.L. ENERGIA S.P.A.;X37139C8F1;SALDO Fatt.n. 004810424242  del 06/03/2018 PUBBLICA ILLUMINAZIONE FEBBRAIO 2018;20-06-2018;170236;0;105;1;Spese correnti;3;Acquisto di beni e servizi;2;Acquisto di servizi;5;Utenze e canoni;4;Energia elettrica;20-06-2018;
572;8;0;"18,85";"1.425,68";E.N.E.L. ENERGIA S.P.A.;X37139C8F1;SALDO Fatt.n. 004810422651  del 06/03/2018 PUBBLICA ILLUMINAZIONE FEBBRAIO 2018;20-06-2018;170236;0;105;1;Spese correnti;3;Acquisto di beni e servizi;2;Acquisto di servizi;5;Utenze e canoni;4;Energia elettrica;20-06-2018;
572;9;0;"20,51";"1.425,68";E.N.E.L. ENERGIA S.P.A.;X37139C8F1;SALDO Fatt.n. 004810240410  del 06/02/2018 PUBBLICA ILLUMINAZIONE GENNAIO 2018;20-06-2018;170236;0;105;1;Spese correnti;3;Acquisto di beni e servizi;2;Acquisto di servizi;5;Utenze e canoni;4;Energia elettrica;20-06-2018;
572;10;0;"41,80";"1.425,68";E.N.E.L. ENERGIA S.P.A.;X37139C8F1;SALDO Fatt.n. 004810422660  del 06/03/2018 PUBBLICA ILLUMINAZIONE FEBBRAIO 2018;20-06-2018;170236;0;105;1;Spese correnti;3;Acquisto di beni e servizi;2;Acquisto di servizi;5;Utenze e canoni;4;Energia elettrica;20-06-2018;
572;11;0;"43,77";"1.425,68";E.N.E.L. ENERGIA S.P.A.;X37139C8F1;SALDO Fatt.n. 004810237542  del 06/02/2018 PUBBLICA ILLUMINAZIONE GENNAIO 2018;20-06-2018;170236;0;105;1;Spese correnti;3;Acquisto di beni e servizi;2;Acquisto di servizi;5;Utenze e canoni;4;Energia elettrica;20-06-2018;
572;12;0;"62,96";"1.425,68";E.N.E.L. ENERGIA S.P.A.;X37139C8F1;SALDO Fatt.n. 004810241611  del 06/02/2018 PUBBLICA ILLUMINAZIONE GENNAIO 2018;20-06-2018;170236;0;105;1;Spese correnti;3;Acquisto di beni e servizi;2;Acquisto di servizi;5;Utenze e canoni;4;Energia elettrica;20-06-2018;
572;13;0;"105,44";"1.425,68";E.N.E.L. ENERGIA S.P.A.;X37139C8F1;SALDO Fatt.n. 004810240404  del 06/02/2018 PUBBLICA ILLUMINAZIONE GENNAIO 2018;20-06-2018;170236;0;105;1;Spese correnti;3;Acquisto di beni e servizi;2;Acquisto di servizi;5;Utenze e canoni;4;Energia elettrica;20-06-2018;
572;14;0;"106,60";"1.425,68";E.N.E.L. ENERGIA S.P.A.;X37139C8F1;SALDO Fatt.n. 004810422657  del 06/03/2018 PUBBLICA ILLUMINAZIONE FEBBRAIO 2018;20-06-2018;170236;0;105;1;Spese correnti;3;Acquisto di beni e servizi;2;Acquisto di servizi;5;Utenze e canoni;4;Energia elettrica;20-06-2018;
572;15;0;"106,98";"1.425,68";E.N.E.L. ENERGIA S.P.A.;X37139C8F1;SALDO Fatt.n. 004810240398  del 06/02/2018 PUBBLICA ILLUMINAZIONE GENNAIO 2018;20-06-2018;170236;0;105;1;Spese correnti;3;Acquisto di beni e servizi;2;Acquisto di servizi;5;Utenze e canoni;4;Energia elettrica;20-06-2018;
572;16;0;"126,03";"1.425,68";E.N.E.L. ENERGIA S.P.A.;X37139C8F1;SALDO Fatt.n. 004810240401  del 06/02/2018 PUBBLICA ILLUMINAZIONE GENNAIO 2018;20-06-2018;170236;0;105;1;Spese correnti;3;Acquisto di beni e servizi;2;Acquisto di servizi;5;Utenze e canoni;4;Energia elettrica;20-06-2018;
572;17;0;"153,79";"1.425,68";E.N.E.L. ENERGIA S.P.A.;X37139C8F1;SALDO Fatt.n. 004810240408  del 06/02/2018 PUBBLICA ILLUMINAZIONE GENNAIO 2018;20-06-2018;170236;0;105;1;Spese correnti;3;Acquisto di beni e servizi;2;Acquisto di servizi;5;Utenze e canoni;4;Energia elettrica;20-06-2018;
572;18;0;"161,16";"1.425,68";E.N.E.L. ENERGIA S.P.A.;X37139C8F1;SALDO Fatt.n. 004810240412  del 06/02/2018 PUBBLICA ILLUMINAZIONE GENNAIO 2018;20-06-2018;170236;0;105;1;Spese correnti;3;Acquisto di beni e servizi;2;Acquisto di servizi;5;Utenze e canoni;4;Energia elettrica;20-06-2018;
572;19;0;"196,40";"1.425,68";E.N.E.L. ENERGIA S.P.A.;X37139C8F1;SALDO Fatt.n. 004810240407  del 06/02/2018 PUBBLICA ILLUMINAZIONE GENNAIO 2018;20-06-2018;170236;0;105;1;Spese correnti;3;Acquisto di beni e servizi;2;Acquisto di servizi;5;Utenze e canoni;4;Energia elettrica;20-06-2018;
572;20;0;"209,89";"1.425,68";E.N.E.L. ENERGIA S.P.A.;X37139C8F1;SALDO Fatt.n. 004810424251  del 06/03/2018 PUBBLICA ILLUMINAZIONE FEBBRAIO 2018;20-06-2018;170236;0;105;1;Spese correnti;3;Acquisto di beni e servizi;2;Acquisto di servizi;5;Utenze e canoni;4;Energia elettrica;20-06-2018;
573;1;0;"7,61";"2.834,89";E.N.E.L. ENERGIA S.P.A.;X37139C8F1;SALDO Fatt.n. 004810422654  del 06/03/2018 ILLUMINAZIONE PUBBLICA- FEBBRAIO 2018;20-06-2018;170236;0;105;1;Spese correnti;3;Acquisto di beni e servizi;2;Acquisto di servizi;5;Utenze e canoni;4;Energia elettrica;20-06-2018;
573;2;0;"7,61";"2.834,89";E.N.E.L. ENERGIA S.P.A.;X37139C8F1;SALDO Fatt.n. 004810422653  del 06/03/2018 ILLUMINAZIONE PUBBLICA- FEBBRAIO 2018;20-06-2018;170236;0;105;1;Spese correnti;3;Acquisto di beni e servizi;2;Acquisto di servizi;5;Utenze e canoni;4;Energia elettrica;20-06-2018;
573;3;0;"9,88";"2.834,89";E.N.E.L. ENERGIA S.P.A.;X37139C8F1;SALDO Fatt.n. 004810424248  del 06/03/2018 ILLUMINAZIONE PUBBLICA- FEBBRAIO 2018;20-06-2018;170236;0;105;1;Spese correnti;3;Acquisto di beni e servizi;2;Acquisto di servizi;5;Utenze e canoni;4;Energia elettrica;20-06-2018;
573;4;0;"10,50";"2.834,89";E.N.E.L. ENERGIA S.P.A.;X37139C8F1;SALDO Fatt.n. 004810424245  del 06/03/2018 ILLUMINAZIONE PUBBLICA- FEBBRAIO 2018;20-06-2018;170236;0;105;1;Spese correnti;3;Acquisto di beni e servizi;2;Acquisto di servizi;5;Utenze e canoni;4;Energia elettrica;20-06-2018;
573;5;0;"12,26";"2.834,89";E.N.E.L. ENERGIA S.P.A.;X37139C8F1;SALDO Fatt.n. 004810422658  del 06/03/2018 ILLUMINAZIONE PUBBLICA- FEBBRAIO 2018;20-06-2018;170236;0;105;1;Spese correnti;3;Acquisto di beni e servizi;2;Acquisto di servizi;5;Utenze e canoni;4;Energia elettrica;20-06-2018;
573;6;0;"19,67";"2.834,89";E.N.E.L. ENERGIA S.P.A.;X37139C8F1;SALDO Fatt.n. 004810424239  del 06/03/2018 ILLUMINAZIONE PUBBLICA- FEBBRAIO 2018;20-06-2018;170236;0;105;1;Spese correnti;3;Acquisto di beni e servizi;2;Acquisto di servizi;5;Utenze e canoni;4;Energia elettrica;20-06-2018;
573;7;0;"36,76";"2.834,89";E.N.E.L. ENERGIA S.P.A.;X37139C8F1;SALDO Fatt.n. 004810422650  del 06/03/2018 ILLUMINAZIONE PUBBLICA- FEBBRAIO 2018;20-06-2018;170236;0;105;1;Spese correnti;3;Acquisto di beni e servizi;2;Acquisto di servizi;5;Utenze e canoni;4;Energia elettrica;20-06-2018;
573;8;0;"64,50";"2.834,89";E.N.E.L. ENERGIA S.P.A.;X37139C8F1;SALDO Fatt.n. 004810422661  del 06/03/2018 ILLUMINAZIONE PUBBLICA- FEBBRAIO 2018;20-06-2018;170236;0;105;1;Spese correnti;3;Acquisto di beni e servizi;2;Acquisto di servizi;5;Utenze e canoni;4;Energia elettrica;20-06-2018;
573;9;0;"78,34";"2.834,89";E.N.E.L. ENERGIA S.P.A.;X37139C8F1;SALDO Fatt.n. 004810424250  del 06/03/2018 ILLUMINAZIONE PUBBLICA- FEBBRAIO 2018;20-06-2018;170236;0;105;1;Spese correnti;3;Acquisto di beni e servizi;2;Acquisto di servizi;5;Utenze e canoni;4;Energia elettrica;20-06-2018;
573;10;0;"83,96";"2.834,89";E.N.E.L. ENERGIA S.P.A.;X37139C8F1;SALDO Fatt.n. 004810422659  del 06/03/2018 ILLUMINAZIONE PUBBLICA- FEBBRAIO 2018;20-06-2018;170236;0;105;1;Spese correnti;3;Acquisto di beni e servizi;2;Acquisto di servizi;5;Utenze e canoni;4;Energia elettrica;20-06-2018;
573;11;0;"88,63";"2.834,89";E.N.E.L. ENERGIA S.P.A.;X37139C8F1;SALDO Fatt.n. 004810424243  del 06/03/2018 ILLUMINAZIONE PUBBLICA -FEBBRAIO 2018;20-06-2018;170236;0;105;1;Spese correnti;3;Acquisto di beni e servizi;2;Acquisto di servizi;5;Utenze e canoni;4;Energia elettrica;20-06-2018;
573;12;0;"90,59";"2.834,89";E.N.E.L. ENERGIA S.P.A.;X37139C8F1;SALDO Fatt.n. 004810424238  del 06/03/2018 ILLUMINAZIONE PUBBLICA- FEBBRAIO 2018;20-06-2018;170236;0;105;1;Spese correnti;3;Acquisto di beni e servizi;2;Acquisto di servizi;5;Utenze e canoni;4;Energia elettrica;20-06-2018;
573;13;0;"107,91";"2.834,89";E.N.E.L. ENERGIA S.P.A.;X37139C8F1;SALDO Fatt.n. 004810424240  del 06/03/2018 ILLUMINAZIONE PUBBLICA -FEBBRAIO 2018;20-06-2018;170236;0;105;1;Spese correnti;3;Acquisto di beni e servizi;2;Acquisto di servizi;5;Utenze e canoni;4;Energia elettrica;20-06-2018;
573;14;0;"115,36";"2.834,89";E.N.E.L. ENERGIA S.P.A.;X37139C8F1;SALDO Fatt.n. 004810424244  del 06/03/2018 ILLUMINAZIONE PUBBLICA- FEBBRAIO 2018;20-06-2018;170236;0;105;1;Spese correnti;3;Acquisto di beni e servizi;2;Acquisto di servizi;5;Utenze e canoni;4;Energia elettrica;20-06-2018;
573;15;0;"131,99";"2.834,89";E.N.E.L. ENERGIA S.P.A.;X37139C8F1;SALDO Fatt.n. 004810422664  del 06/03/2018 ILLUMINAZIONE PUBBLICA- FEBBRAIO 2018;20-06-2018;170236;0;105;1;Spese correnti;3;Acquisto di beni e servizi;2;Acquisto di servizi;5;Utenze e canoni;4;Energia elettrica;20-06-2018;
573;16;0;"159,55";"2.834,89";E.N.E.L. ENERGIA S.P.A.;X37139C8F1;SALDO Fatt.n. 004810424246  del 06/03/2018 ILLUMINAZIONE PUBBLICA- FEBBRAIO 2018;20-06-2018;170236;0;105;1;Spese correnti;3;Acquisto di beni e servizi;2;Acquisto di servizi;5;Utenze e canoni;4;Energia elettrica;20-06-2018;
573;17;0;"166,12";"2.834,89";E.N.E.L. ENERGIA S.P.A.;X37139C8F1;SALDO Fatt.n. 004810424249  del 06/03/2018 ILLUMINAZIONE PUBBLICA- FEBBRAIO 2018;20-06-2018;170236;0;105;1;Spese correnti;3;Acquisto di beni e servizi;2;Acquisto di servizi;5;Utenze e canoni;4;Energia elettrica;20-06-2018;
573;18;0;"245,55";"2.834,89";E.N.E.L. ENERGIA S.P.A.;X37139C8F1;SALDO Fatt.n. 004810436834  del 06/03/2018 ILLUMINAZIONE PUBBLICA- FEBBRAIO 2018;20-06-2018;170236;0;105;1;Spese correnti;3;Acquisto di beni e servizi;2;Acquisto di servizi;5;Utenze e canoni;4;Energia elettrica;20-06-2018;
573;19;0;"290,41";"2.834,89";E.N.E.L. ENERGIA S.P.A.;X37139C8F1;SALDO Fatt.n. 004810422655  del 06/03/2018 ILLUMINAZIONE PUBBLICA -FEBBRAIO 2018;20-06-2018;170236;0;105;1;Spese correnti;3;Acquisto di beni e servizi;2;Acquisto di servizi;5;Utenze e canoni;4;Energia elettrica;20-06-2018;
573;20;0;"1.107,69";"2.834,89";E.N.E.L. ENERGIA S.P.A.;X37139C8F1;SALDO Fatt.n. 004810422652  del 06/03/2018 ILLUMINAZIONE PUBBLICA- FEBBRAIO 2018;20-06-2018;170236;0;105;1;Spese correnti;3;Acquisto di beni e servizi;2;Acquisto di servizi;5;Utenze e canoni;4;Energia elettrica;20-06-2018;
574;1;0;"33,73";"685,91";E.N.E.L. ENERGIA S.P.A.;X37139C8F1;SALDO Fatt.n. 004810457702  del 13/03/2018 ILLUMINAZIONE PUBBLICA -FEBBRAIO 2018;20-06-2018;170236;0;105;1;Spese correnti;3;Acquisto di beni e servizi;2;Acquisto di servizi;5;Utenze e canoni;4;Energia elettrica;20-06-2018;
574;2;0;"88,00";"685,91";E.N.E.L. ENERGIA S.P.A.;X37139C8F1;SALDO Fatt.n. 004810454247  del 13/03/2018 ILLUMINAZIONE PUBBLICA -FEBBRAIO 2018;20-06-2018;170236;0;105;1;Spese correnti;3;Acquisto di beni e servizi;2;Acquisto di servizi;5;Utenze e canoni;4;Energia elettrica;20-06-2018;
574;3;0;"108,35";"685,91";E.N.E.L. ENERGIA S.P.A.;X37139C8F1;SALDO Fatt.n. 004810424247  del 06/03/2018 ILLUMINAZIONE PUBBLICA -FEBBRAIO 2018;20-06-2018;170236;0;105;1;Spese correnti;3;Acquisto di beni e servizi;2;Acquisto di servizi;5;Utenze e canoni;4;Energia elettrica;20-06-2018;
574;4;0;"455,83";"685,91";E.N.E.L. ENERGIA S.P.A.;X37139C8F1;SALDO Fatt.n. 004810454246  del 13/03/2018 ILLUMINAZIONE PUBBLICA -FEBBRAIO 2018;20-06-2018;170236;0;105;1;Spese correnti;3;Acquisto di beni e servizi;2;Acquisto di servizi;5;Utenze e canoni;4;Energia elettrica;20-06-2018;
575;1;0;"40.500,00";"40.500,00";COMUNE DI FOSSACESIA; ;SERVIZI SOCIALI PRIMO TRIMESTRE 2018;20-06-2018;161546;0;13;1;Spese correnti;4;Trasferimenti correnti;1;Trasferimenti correnti a Amministrazioni Pubbliche;2;Trasferimenti correnti a Amministrazioni Locali;5;Trasferimenti correnti a Unioni di Comuni;20-06-2018;
